Cogmind - Beta 16.1 @@@ ROGUE MODE // 2026.01.09 @ 17:36:43 Player: C0-2MO Result: Defending 0bPrime! Performance ------------- Evolutions (8) 4000 Regions Visited (29) 5800 Robots Destroyed (297) 1485 Value Destroyed (12730) 12730 Prototype IDs (172) 3440 Alien Tech Used (8) 1600 Bonus (45032) 45032 TOTAL SCORE: 74087 Bonus ------- High Alert Combat Kills 4147 Follower Combat Kills 2385 Hunted by Unchained 1000 Destroyed Unchained 1000 Entered Garrisons 200 Used RIF Installer 500 Network Hubs Disabled 400 Registered with UFD 300 Met Optimus in HQ 500 Met Zhirov 300 Built Enhanced Grunts 300 Met R17 at Cetus 500 Met R17 at Research 2000 Scanned by Researcher 500 Met Sigix 2000 Destroyed Superfortress 15000 Met Optimus at Protoforge 1000 Executed Drillbomb Mission 10000 Win 3000 Cogmind --------- Core Integrity 433/1450 Matter 300/300 Energy 340/340 System Corruption 0% Temperature Cool (0) Movement Hovering (32) Location 0bPrime Parts ------- > --- POWER (2) -------- Concept Zero-point Core Concept Zero-point Core > --- PROPULSION (6) --- Gravjet Array Gravjet Array Gravjet Array > --- UTILITY (13) ----- Concept Antigrav Storage Unit Experimental Optical Array Experimental Active Sensor Suite Concept Weapon Articulator Experimental Core Analyzer Experimental Armor Integrity Analyzer Concept Cloak Mesh Concept Cloak Mesh Concept Core Shell Concept RG22 Armor Concept RG22 Armor Advanced Corruption Screen > --- WEAPON (2) ------- Sigix Broadsword > --- INVENTORY (25) --- Concept Zero-point Core Gravjet Array Concept Gyrokinetic System Concept Gyrokinetic System Concept Gyrokinetic System Concept NT7 Matterbank (750) Stasis Canceller Concept Core Shell Concept RG22 Armor Concept Impact Drone Bay (6/6) Concept Impact Drone Bay (6/6) Concept Plasma Driver Concept Arcsight Missile Launcher Experimental Jetlance Peak State ------------ > --- POWER ------------ Concept Zero-point Core Concept Zero-point Core > --- PROPULSION ------- Gravjet Array Gravjet Array Gravjet Array > --- UTILITY ---------- Concept Antigrav Storage Unit Experimental Optical Array Experimental Active Sensor Suite Concept Weapon Articulator Experimental Core Analyzer Experimental Armor Integrity Analyzer Concept Cloak Mesh Concept Cloak Mesh Concept Core Shell Concept RG22 Armor Concept RG22 Armor Advanced Corruption Screen > --- WEAPON ----------- Sigix Broadsword > --- INVENTORY -------- Concept Zero-point Core Gravjet Array Concept Gyrokinetic System Concept Gyrokinetic System Concept Gyrokinetic System Concept NT7 Matterbank Stasis Canceller Concept Core Shell Concept RG22 Armor Concept Impact Drone Bay Concept Impact Drone Bay Concept Plasma Driver Concept Arcsight Missile Launcher Experimental Jetlance UFD Drillbomb [Rating: 287] Favorites ----------- Power Micro Antimatter Reactor Engine Light Ion Engine Power Core Concept Zero-point Core Reactor Micro Antimatter Reactor Propulsion Improved Cesium-ion Thruster Treads Light Treads Leg Enhanced Flexi-carbon Leg Hover Unit Gravjet Array Flight Unit Improved Cesium-ion Thruster Utility Advanced Hacking Suite Device Improved Cloaking Device Storage Medium Storage Unit Processor Experimental Terrain Scan Processor Hackware Advanced Hacking Suite Protection Concept RG22 Armor Weapon Power Sword Energy Gun Small Laser Energy Cannon Concept Plasma Driver Ballistic Gun Improved Assault Rifle Ballistic Cannon Enhanced Gauss Cannon Launcher Concept Arcsight Missile Launcher Special Weapon Improved Plasma Cutter Impact Weapon Powered Hammer Slashing Weapon Power Sword Piercing Weapon Experimental Jetlance Special Melee Weapon Advanced Datajack Build | -11 -10 -10 -9 -9 -8 -7 -7 -7 -7 -7 -7 -5 -5 -5 -5 -5 -5 -4 -4 -4 -4 -4 -4 -3 -3 -3 -2 -2 -2 ------- Run | Yrd Mat Min Mat Min Mat Fac Was Fac Sto Rec Scr Fac Ext Cet Arc Hub Gar Fac Was Fac Upp Upp Zhi Pro Res Qua Res Tes Frg Slots Evolved 16 | . . . 2 . 2 2 . . . . . 4 . . . . . 2 . . . . . . 2 . 2 . . Power 1 | . . . . . . . . . . . . 1 . . . . . . . . . . . . . . . . . Propulsion 4 | . . . 2 . . 1 . . . . . 1 . . . . . . . . . . . . . . . . . Utility 11 | . . . . . 2 1 . . . . . 2 . . . . . 2 . . . . . . 2 . 2 . . Weapon . | . . . . . . . . . . . . . . . . . . . . . . . . . . . . . . Parts Attached 295 | 5 21 3 26 7 13 35 . 1 5 2 3 22 7 12 1 2 . 18 1 13 1 . 6 . 15 6 4 4 62 Power 40 | . 3 2 4 1 2 4 . . . . . 4 1 2 . 1 . 1 1 1 . . 1 . 2 . 1 1 8 Engine 15 | . 3 1 4 1 1 2 . . . . . 2 1 . . . . . . . . . . . . . . . . Core 15 | . . 1 . . 1 2 . . . . . 2 . . . 1 . . 1 . . . . . . . 1 . 6 Reactor 10 | . . . . . . . . . . . . . . 2 . . . 1 . 1 . . 1 . 2 . . 1 2 Propulsion 70 | 2 4 . 9 5 3 10 . . 4 . . 2 . 1 1 . . 5 . 4 . . 3 . 2 3 1 . 11 Treads 2 | 2 . . . . . . . . . . . . . . . . . . . . . . . . . . . . . Leg 1 | . . . . . . . . . . . . . . . 1 . . . . . . . . . . . . . . Wheel . | . . . . . . . . . . . . . . . . . . . . . . . . . . . . . . Hover 8 | . . . . . . . . . . . . . . . . . . 1 . 2 . . . . . . . . 5 Flight 59 | . 4 . 9 5 3 10 . . 4 . . 2 . 1 . . . 4 . 2 . . 3 . 2 3 1 . 6 Utility 122 | 1 4 . 4 . 3 12 . 1 . 2 1 11 5 6 . . . 10 . 7 . . 2 . 10 2 2 3 36 Device 64 | 1 2 . 1 . 1 5 . 1 . . . 6 1 2 . . . 9 . 5 . . 1 . 5 2 2 3 17 Storage 11 | . . . 1 . . . . . . 2 . 1 1 1 . . . . . . . . . . 2 . . . 3 Processor 18 | . 1 . 2 . 1 2 . . . . . 3 . . . . . 1 . . . . . . 1 . . . 7 Hackware 12 | . . . . . . 4 . . . . . 1 1 1 . . . . . 1 . . 1 . 2 . . . 1 Protection 17 | . 1 . . . 1 1 . . . . 1 . 2 2 . . . . . 1 . . . . . . . . 8 Artifact . | . . . . . . . . . . . . . . . . . . . . . . . . . . . . . . Weapon 63 | 2 10 1 9 1 5 9 . . 1 . 2 5 1 3 . 1 . 2 . 1 1 . . . 1 1 . . 7 Energy Gun 7 | 2 1 . 1 . 2 . . . . . . . . 1 . . . . . . . . . . . . . . . Energy Cannon 4 | . . . 1 . . . . . . . . . . 1 . . . . . . . . . . . . . . 2 Ballistic Gun 22 | . 7 1 6 1 2 1 . . . . 1 1 . 1 . . . . . . . . . . . . . . 1 Ballistic Cannon 4 | . . . . . 1 . . . . . . 1 . . . . . . . . . . . . . . . . 2 Launcher 3 | . . . . . . 1 . . 1 . . . . . . . . . . . . . . . . . . . 1 Special Weapon 4 | . . . . . . . . . . . 1 . 1 . . 1 . . . . 1 . . . . . . . . Impact Weapon 4 | . . . 1 . . 2 . . . . . 1 . . . . . . . . . . . . . . . . . Slashing Weapon 9 | . 1 . . . . 3 . . . . . 1 . . . . . 1 . 1 . . . . 1 1 . . . Piercing Weapon 1 | . . . . . . . . . . . . . . . . . . . . . . . . . . . . . 1 Special Melee Weapon 5 | . 1 . . . . 2 . . . . . 1 . . . . . 1 . . . . . . . . . . . Unidentified Prototypes 55 | . . . 5 . 1 2 . . 2 . 1 . . 8 1 . . 3 . 4 1 . 4 . 3 5 . 1 14 Parts Lost 65 | . 6 2 4 1 10 8 . . . . . 6 4 2 . 3 . 1 . . . . . . . 2 . . 16 Power 14 | . 1 1 1 1 1 1 . . . . . 2 2 . . . . . . . . . . . . . . . 4 Propulsion 25 | . 1 . 3 . 5 5 . . . . . . . 2 . 2 . 1 . . . . . . . 2 . . 4 Utility 17 | . 2 . . . 1 2 . . . . . 3 2 . . . . . . . . . . . . . . . 7 Weapon 9 | . 2 1 . . 3 . . . . . . 1 . . . 1 . . . . . . . . . . . . 1 Highest Loss Streak 8 | . 5 2 2 1 5 4 . . . . . 3 3 2 . 3 . 1 . . . . . . . 2 . . 8 To Critical Strikes . | . . . . . . . . . . . . . . . . . . . . . . . . . . . . . . Average Backups 10 | 1 4 4 6 9 9 5 5 4 5 5 8 9 8 7 6 7 7 8 8 9 8 9 9 9 11 13 13 13 16 Power . | . . . . . . . . . . . . . . . . 1 1 1 2 2 1 1 1 1 1 2 2 1 1 Propulsion 1 | . . 2 . 1 . . . . . . . 1 2 . . . . . . 1 1 1 . . 2 1 1 2 3 Utility 5 | . . 1 2 5 5 3 4 3 3 3 4 4 3 3 3 3 3 5 6 6 6 6 6 6 5 5 4 5 8 Weapon 1 | . 1 1 1 2 2 . . . . . . . . . 2 2 1 . . . . 1 1 1 1 2 3 2 3 Tool/Special . | . . . . . . . . . . . . . . . . . . . . . . . . . . . . . . Unused Backups 39 | 1 1 . . 1 1 3 . . . . . 3 . . . . . 1 . 4 . . . . 6 4 . 2 12 Power 4 | . . . . . . 1 . . . . . . . . . . . . . 1 . . . . . . . . 2 Propulsion 8 | . . . . . . . . . . . . 1 . . . . . . . 1 . . . . . 1 . . 5 Utility 17 | 1 . . . 1 . . . . . . . . . . . . . 1 . 2 . . . . 5 1 . 1 5 Weapon 6 | . 1 . . . 1 1 . . . . . 1 . . . . . . . . . . . . 1 . . 1 . Tool/Special 4 | . . . . . . 1 . . . . . 1 . . . . . . . . . . . . . 2 . . . Average Slot Usage (%) 86 | . 77 93 91 96 80 81 86 91 92 92 91 86 89 78 93 92 70 86 88 88 89 88 94 100 90 89 82 86 82 Engine 1 | . 4 13 8 8 6 . . . . . . 2 4 . . . . . . . . . . . . . . . . Core 2 | . . . . 2 1 4 7 7 7 7 7 6 3 . . 4 5 1 . . . . . . . . 2 . 5 Reactor 3 | . . . . . . . . . . . . . . 6 11 5 4 8 9 10 10 10 10 10 7 9 3 8 1 Hover 1 | . . . . . . . . . . . . . . . . . . 1 . . . . . . . . . . 8 Flight 23 | . 13 28 41 44 34 31 38 37 38 38 38 28 29 26 29 28 17 19 21 21 21 21 26 31 23 23 18 17 7 Device 13 | . 13 28 9 . 2 2 7 8 7 1 . 8 5 6 11 11 11 19 21 17 15 14 15 15 19 18 22 26 18 Storage 4 | . . . 5 11 9 . . . . 5 7 5 5 5 5 5 5 5 5 5 5 5 5 5 4 4 4 4 4 Processor 10 | . 5 . 7 11 12 12 9 7 7 7 7 11 9 5 5 5 5 9 10 10 10 10 10 10 9 9 8 8 17 Hackware 10 | . . . . . . 15 15 15 15 15 15 11 12 13 11 11 11 10 10 13 15 15 14 15 17 19 17 17 7 Protection 2 | . 3 . . . 1 3 . 5 7 7 6 . 3 3 5 5 . . . . . . . . . . . . 4 Ballistic Gun 2 | . 16 8 17 19 11 . . . . . . . . 1 . . . . . . . . . . . . . . . Slashing Weapon 3 | . 2 7 1 . . 5 7 7 7 7 7 3 4 3 4 4 . . 5 5 5 5 5 5 4 4 4 4 3 Special Melee Weapon 1 | . . 6 . . . 2 . . . . . . . . 4 2 . 4 5 4 5 5 5 5 1 . . . . Peak Build Rating 287 | 4 7 8 22 19 26 55 55 55 61 59 57 97 96 101 98 96 77 121 112 128 132 126 132 130 162 179 195 196 287 Average Rating 116 | 3 5 6 16 17 19 38 51 53 57 52 53 87 87 76 93 92 71 109 111 120 124 125 127 130 153 165 181 191 228 On Entrance 82 | . 4 7 7 18 18 14 55 51 49 59 52 55 91 73 90 94 72 71 112 112 125 126 126 130 130 161 179 189 196 Avg Prop Armor Cover (%) 14 | 29 27 . . . . 3 . . . . . . 5 . 8 . . 7 . . . . . . . . . . 1 Naked Turns . | . . . . . . . . . . . . . . . . . . . . . . . . . . . . . . Heaviest Build 90 | 3 8 8 19 19 39 14 12 18 18 23 24 37 36 47 46 44 28 44 36 40 35 37 35 35 52 58 60 65 90 Greatest Support 90 | 3 40 8 20 20 20 22 22 24 28 28 28 37 37 46 46 46 33 57 41 42 42 42 42 35 61 64 65 65 90 Greatest Overweight (x) 14 | . 1 . . . 1 1 . . . . . . . 1 14 . . . . . . . 1 . . . . 1 2 Average Overweight (x) . | . . . . . . . . . . . . . . . 7 . . . . . . . . . . . . . . Largest Inventory Capacity 25 | 5 5 5 10 10 10 10 5 5 5 10 10 10 10 10 10 10 10 10 10 10 10 10 10 10 15 15 15 15 25 Average Capacity 11 | 5 5 5 7 10 10 5 5 5 5 7 10 10 10 10 10 10 10 10 10 10 10 10 10 10 13 15 15 15 20 Most Carried 25 | 3 5 5 10 10 10 10 5 5 5 7 10 10 9 8 7 8 8 10 9 10 10 10 10 10 15 15 15 15 25 Average Carried 10 | 1 4 4 6 9 9 5 5 4 5 5 8 9 8 7 6 7 7 9 8 9 8 10 9 10 12 14 14 14 18 Final Capacity 25 | 5 5 5 10 10 10 5 5 5 5 10 10 10 10 10 10 10 10 10 10 10 10 10 10 10 15 15 15 15 25 Final Carried 15 | 3 4 5 10 10 10 5 5 5 5 6 10 9 8 7 6 8 7 8 9 9 10 10 10 10 15 15 14 15 15 Class Distribution -------------------- 21% | Hacker-Sprinter 14% | Hacker-Ninja 14% | Scavenger-Sprinter 10% | Wizard-Ninja 8% | Scavenger-Mutant 6% | Scavenger-Ninja 5% | Mutant 4% | Sprinter Dominant Class ---------------- Mutant | -10/Materials Scavenger-Mutant | -10/Mines Sprinter | -9/Materials Scavenger-Sprinter | -9/Mines Scavenger-Sprinter | -8/Materials Scavenger-Sprinter | -7/Factory Hacker-Sprinter | -7/Waste Hacker-Sprinter | -7/Factory Hacker-Sprinter | -7/Storage Hacker-Sprinter | -7/Recycling Hacker-Sprinter | -7/Scraptown Hacker-Sprinter | -5/Factory Hacker-Sprinter | -5/Extension Scavenger-Sprinter | -5/Cetus Scavenger-Mutant | -5/Archives Scavenger-Sprinter | -5/Hub_04(d) Hacker-Sprinter | -5/Garrison Hacker-Sprinter | -4/Factory Hacker-Ninja | -4/Waste Hacker-Ninja | -4/Factory Hacker-Ninja | -4/Upper Caves Hacker-Ninja | -4/Upper Caves Hacker-Ninja | -4/Zhirov Hacker-Ninja | -3/Proximity Caves Wizard-Ninja | -3/Research Wizard-Ninja | -3/Quarantine Wizard-Ninja | -2/Research Wizard-Ninja | -2/Testing Scavenger-Ninja | -2/Protoforge Resources | -11 -10 -10 -9 -9 -8 -7 -7 -7 -7 -7 -7 -5 -5 -5 -5 -5 -5 -4 -4 -4 -4 -4 -4 -3 -3 -3 -2 -2 -2 ----------- Run | Yrd Mat Min Mat Min Mat Fac Was Fac Sto Rec Scr Fac Ext Cet Arc Hub Gar Fac Was Fac Upp Upp Zhi Pro Res Qua Res Tes Frg Matter Collected 11447 | 250 329 91 1114 195 477 488 . 135 90 60 20 400 120 196 104 20 . 209 124 190 170 30 110 . 601 160 67 278 5419 Remotely . | . . . . . . . . . . . . . . . . . . . . . . . . . . . . . . Salvage Created 13013 | 137 623 . 1798 276 588 729 . 223 481 301 . 422 352 78 86 65 . 502 . 268 120 58 226 16 911 26 74 473 4180 Parts 600 | 7 37 . 125 26 46 53 . 7 16 7 . 12 9 7 3 4 . 10 . 8 . 6 4 . 26 3 4 19 161 Haulers Intercepted 22 | . . . 5 . . 3 . 1 2 . . 1 . . . . . 1 . . . . . . 7 . . 1 1 Recyclers Shooed 1 | . . . . . . 1 . . . . . . . . . . . . . . . . . . . . . . . Parts Field Recycled . | . . . . . . . . . . . . . . . . . . . . . . . . . . . . . . Retrieved Matter . | . . . . . . . . . . . . . . . . . . . . . . . . . . . . . . Parts Self-Destructed 8 | . . . . . . . . . . . . . . . . . . . . . . 6 2 . . . . . . Prevented . | . . . . . . . . . . . . . . . . . . . . . . . . . . . . . . Parts Restored 18 | . . . . . . . . . . . . . . . . . . . . . . . . . . . . 2 16 Broken 8 | . . . . . . . . . . . . . . . . . . . . . . . . . . . . 2 6 Faulty 10 | . . . . . . . . . . . . . . . . . . . . . . . . . . . . . 10 Kills | -11 -10 -10 -9 -9 -8 -7 -7 -7 -7 -7 -7 -5 -5 -5 -5 -5 -5 -4 -4 -4 -4 -4 -4 -3 -3 -3 -2 -2 -2 ------- Run | Yrd Mat Min Mat Min Mat Fac Was Fac Sto Rec Scr Fac Ext Cet Arc Hub Gar Fac Was Fac Upp Upp Zhi Pro Res Qua Res Tes Frg Combat Hostiles Destroyed 185 | . 12 . 33 11 14 13 . . 2 1 . 3 4 1 1 1 . . . 1 . . . 2 . . . 1 85 Melee 47 | . . . . . . 7 . . 2 1 . 1 1 . . 1 . . . 1 . . . 2 . . . 1 30 Guns 70 | . 12 . 33 11 12 . . . . . . . . 1 1 . . . . . . . . . . . . . . Cannons 15 | . . . . . 2 . . . . . . 1 . . . . . . . . . . . . . . . . 12 AOE 45 | . . . . . . 6 . . . . . . . . . . . . . . . . . . . . . . 39 Classes Destroyed 25 | 2 5 . 3 1 3 1 . . . . . . . . . . . . . . 1 . . 1 . . . 1 7 Worker 1 | . . . . . . . . . . . . . . . . . . . . . . . . . . . . 1 . Builder 6 | . 1 . 1 . 1 1 . . . . . 1 . . . . . . . . . . . . . . 1 . . Tunneler 6 | 2 . . 2 . . 1 . . . . . . . . . . . 1 . . . . . . . . . . . Hauler 22 | . . . 5 . . 3 . 1 2 . . 1 . . . . . 1 . . . . . . 7 . . 1 1 Recycler 18 | 1 1 . 1 . . 2 . 1 3 3 . 1 1 . . . . 2 . . . . . . 1 . . 1 . Minesweeper 3 | . . . . . . . . . . . . . . . . . . . . . 1 2 . . . . . . . Mechanic 6 | . 1 . . . . 1 . . . . . . . . . . . . . . . . . . . . . . 4 Operator 22 | . 2 . 4 . 1 3 . . . . . 1 . . . 2 . 1 . . . . . . 3 2 1 2 . Drone 17 | . . . . . . . . . . . . . . . . . . . . . . . . 2 . . . . 15 Watcher 22 | . . . 4 . . 2 . 2 2 . . 1 . 1 . . . 3 . 4 . . . . . . 1 2 . Swarmer 24 | . 3 . 6 7 2 5 . . . . . . . . . . . . . . . . . . . . . . 1 Cutter 7 | . . . . . 2 4 . . . . . 1 . . . . . . . . . . . . . . . . . Saboteur 1 | . . . . . . . . . . . . . . . . . . . . . . . . . . . . . 1 Grunt 67 | . 9 . 18 3 5 2 . . 1 . . 1 4 . . 1 . . . . . . . . . . . 1 22 Brawler 5 | . . . . 1 1 . . . . . . . . . . . . . . . . . . . . . . . 3 Protector 4 | . . . . . . . . . . . . . . . . . . . . . . . . . . . . . 4 Researcher 7 | . . . . . . . . . . . . . . . . . . . . . . . . . . . . . 7 Sentry 23 | . . . 9 . 2 . . . 1 1 . . . . 1 . . . . . . . . . . . . . 9 Hunter 7 | . . . . . 1 . . . . . . 1 . . . . . . . . . . . . . . . . 5 Programmer 4 | . . . . . . 2 . . . . . . . . . . . . . . . . . . . . . . 2 Heavy 1 | . . . . . 1 . . . . . . . . . . . . . . . . . . . . . . . . Cetus Guard 1 | . . . . . . . . . . . . . . 1 . . . . . . . . . . . . . . . Hotshot 2 | . . . . . . . . . . . . . . . . . . . . . . . . . . . . . 2 Decapitator 9 | . . . . . . . . . . . . . . . . . . . . . . . . . . . . . 9 Immortal 3 | . . . . . . . . . . . . . . . . . . . . . . . . . . . . . 3 Striker 2 | . . . . . . . . . . . . . . . . . . . . . . . . . . . . . 2 Executioner 5 | . . . . . . . . . . . . . . . . . . . . . . . . . . . . . 5 Alpha 7 2 | . . . . . . . . . . . . . . . . . . . . . . . . . . . . . 2 Best Kill Streak 25 | 3 5 . 8 6 5 5 . 1 6 3 . 1 2 2 1 2 . 2 . 2 1 1 . 2 3 1 1 4 25 Combat Bots Only 23 | . 5 . 7 6 4 4 . . 2 1 . 1 2 1 1 1 . . . 1 . . . 2 . . . 1 23 Max Kills in Single Turn 5 | 1 1 . 2 1 1 5 . 1 1 1 . 1 1 1 1 1 . 1 . 1 1 1 . 1 1 1 1 1 5 Gunslinging . | . . . . . . . . . . . . . . . . . . . . . . . . . . . . . . Exploded 5 | . . . . . . 4 . . . . . . . . . . . . . . . . . . . . . . 5 Melee 1 | . . . . . . 1 . . 1 1 . 1 1 . . 1 . . . 1 . . . 1 . . . 1 1 Uniques/NPCs Destroyed 1 | . . . . . . . . . . . . . . . . . . . . 1 . . . . . . . . . BL-1NK (-4/Factory) Combat | -11 -10 -10 -9 -9 -8 -7 -7 -7 -7 -7 -7 -5 -5 -5 -5 -5 -5 -4 -4 -4 -4 -4 -4 -3 -3 -3 -2 -2 -2 -------- Run | Yrd Mat Min Mat Min Mat Fac Was Fac Sto Rec Scr Fac Ext Cet Arc Hub Gar Fac Was Fac Upp Upp Zhi Pro Res Qua Res Tes Frg Hostile Shots Fired 1180 | . 78 3 114 28 127 94 . 15 3 9 . 122 32 21 4 19 . 47 . 89 . 3 . 10 6 34 30 11 281 Missed 553 | . 28 2 48 8 50 47 . 9 1 7 . 56 18 10 2 9 . 23 . 50 . 2 . 8 4 19 16 7 129 Hits 627 | . 50 1 66 20 77 47 . 6 2 2 . 66 14 11 2 10 . 24 . 39 . 1 . 2 2 15 14 4 152 Melee 17 | . . . . . 3 2 . . . . . 3 . . . 4 . . . . . . . . . . . . 5 Projectile 610 | . 50 1 66 20 74 45 . 6 2 2 . 63 14 11 2 6 . 24 . 39 . 1 . 2 2 15 14 4 147 AOE 9 | . 1 . . . 2 3 . . . . . 1 . . . . . . . . . . . . . . . . 2 Critical Strikes 32 | . 2 . 1 . 6 4 . . . . . 3 1 1 . 2 . . . . . 1 . . . . 1 . 10 Actively Blocked 7 | . . . . . . . . . . . . 1 . . . . . . . . . . . . . . 1 . 5 Damage Taken 13569 | . 799 73 849 202 1226 805 . 60 33 17 . 1397 266 297 59 313 . 430 . 619 . 23 . 45 86 380 297 70 5223 Core 2703 | . 152 37 148 53 357 329 . 17 16 12 . 261 46 27 29 42 . 103 . 157 . . . 23 . . . . 894 Absorbed by Shields 263 | . . . 81 . 22 . . 4 . . . . 9 . . . . 93 . 23 . . . . . . . 12 19 Redirected to Shielding 430 | . . . . . . 39 . 17 . . . 90 . . . . . . . . . . . . . . . . 284 Regen/Repaired (Parts) 2601 | . 10 . 18 . 15 130 . 53 . . . 82 . 58 . 47 2 85 37 106 . . . . 26 60 361 35 1476 Core Remaining (%) 56 | 100 . 24 . 49 35 . . . . . 46 . . . . . 59 . . . . . . 75 . 91 . . 29 Volleys Fired 523 | 28 73 10 135 26 77 3 . . . . . 11 1 5 16 1 . . . . . . . . . . . . 137 Largest 2 | 1 2 2 2 2 2 1 . . . . . 2 1 1 1 1 . . . . . . . . . . . . 2 Hottest 300 | 40 60 40 46 46 57 45 . . . . . 70 . 35 35 35 . . . . . . . . . . . . 300 Shots Fired 776 | 28 139 11 241 40 130 3 . . . . . 12 1 5 16 1 . . . . . . . . . . . . 149 Gun 605 | 28 139 11 241 40 119 . . . . . . 6 . 4 16 1 . . . . . . . . . . . . . Cannon 140 | . . . . . 11 . . . . . . 6 . . . . . . . . . . . . . . . . 123 Launcher 29 | . . . . . . 3 . . . . . . . . . . . . . . . . . . . . . . 26 Special 2 | . . . . . . . . . . . . . 1 1 . . . . . . . . . . . . . . . Kinetic 649 | . 122 11 241 40 123 . . . . . . 12 . 4 16 1 . . . . . . . . . . . . 79 Thermal 89 | 28 17 . . . . . . . . . . . . . . . . . . . . . . . . . . . 44 Explosive 29 | . . . . . . 3 . . . . . . . . . . . . . . . . . . . . . . 26 Electromagnetic 7 | . . . . . 7 . . . . . . . . . . . . . . . . . . . . . . . . Robot Hit Streak 23 | 3 11 1 15 8 13 7 . . . . . 6 7 8 5 . . . . . . . . . . . . . 23 Robot Miss Streak 8 | 5 5 5 8 3 4 3 . . . . . 1 . 1 2 . . . . . . . . . . . . . 4 Penetration Max 1 | . . . . . . . . . . . . . . . 1 . . . . . . . . . . . . . 1 Secondary Targets 4 | . . . 2 2 . . . . . . . . . . . . . . . . . . . . . . . . . Max Gunslinging Chain 1 | . . . 1 1 . . . . . . . . . . . . . . . . . . . . . . . . . Shots Hit Robots 781 | 14 97 2 156 28 95 43 . 7 19 4 . 23 12 8 15 3 . 13 . 14 3 4 4 2 32 1 4 8 170 Core Hits 411 | 4 39 1 68 14 39 32 . 2 7 2 . 6 2 1 5 2 . 3 . 8 1 2 1 2 7 . 1 5 157 Critical Kills 16 | . 1 . 1 . . . . . . . . . . . . . . 1 . . . . . . . . . . 13 Critical Parts Destroyed 20 | . . . . . 1 . . . . . . . 1 1 1 . . 2 . . . . . . . . . . 14 Critical Strikes 61 | . 1 . 1 . 2 1 . 1 3 . . 3 1 1 1 . . 3 . 3 . . . . 3 . . . 37 Meltdown 4 | . . . . . . . . . . . . . . . . . . . . . . . . . . . . . 4 Destroy 28 | . 1 . 1 . 1 . . . . . . . . . 1 . . . . . . . . . . . . . 24 Blast 1 | . . . . . 1 . . . . . . . . . . . . . . . . . . . . . . . . Smash 5 | . . . . . . . . . . . . . 1 1 . . . 3 . . . . . . . . . . . Sever 18 | . . . . . . 1 . 1 3 . . 3 . . . . . . . 3 . . . . 3 . . . 4 Impale 5 | . . . . . . . . . . . . . . . . . . . . . . . . . . . . . 5 Melee Attacks 760 | . 8 3 10 . . 75 . 35 29 9 . 60 27 6 3 19 6 74 . 81 10 12 4 7 86 34 20 19 123 Impact 107 | . . . . . . 1 . . . . . 7 19 3 . . 6 71 . . . . . . . . . . . Slashing 627 | . 8 3 10 . . 72 . 35 29 9 . 52 8 3 . 19 . 1 . 81 10 12 4 7 86 34 20 19 105 Piercing 18 | . . . . . . . . . . . . . . . . . . . . . . . . . . . . . 18 Sneak Attacks 106 | . 3 . 3 . . 8 . 4 6 3 . 7 6 . 3 1 . 9 . 3 1 2 . . 12 1 1 4 29 Combat Hostiles 7 | . . . . . . . . . . . . 2 2 . . 1 . . . . . . . . . . . . 2 Follow-up Attacks 1 | . . . . . . . . . . . . . 1 . . . . . . . . . . . . . . . . Damage Inflicted 46099 | 162 1057 23 2663 435 1440 2915 . 631 1446 433 . 1342 691 248 368 210 . 1020 . 842 284 251 340 96 2941 188 545 1237 24291 Guns 5604 | 162 784 23 2476 435 1251 . . . . . . 58 . 47 368 . . . . . . . . . . . . . . Cannons 3044 | . . . . . 189 . . . . . . 28 . . . . . . . . . . . . . . . . 2827 Explosions 13171 | . . . . . . 627 . . . . . . . . . . . . . . . . . . . . . . 12544 Melee 24280 | . 273 . 187 . . 2288 . 631 1446 433 . 1256 691 201 . 210 . 1020 . 842 284 251 340 96 2941 188 545 1237 8920 Ramming . | . . . . . . . . . . . . . . . . . . . . . . . . . . . . . . Kinetic 5917 | . 665 23 2476 435 1294 . . . . . . 86 . 47 368 . . . . . . . . . . . . . 523 Thermal 2585 | 162 119 . . . . . . . . . . . . . . . . . . . . . . . . . . . 2304 Explosive 13171 | . . . . . . 627 . . . . . . . . . . . . . . . . . . . . . . 12544 Electromagnetic 146 | . . . . . 146 . . . . . . . . . . . . . . . . . . . . . . . . Impact 1819 | . . . . . . . . . . . . 159 522 118 . . . 1020 . . . . . . . . . . . Slashing 22014 | . 273 . 187 . . 2288 . 631 1446 433 . 1097 169 83 . 210 . . . 842 284 251 340 96 2941 188 545 1237 8473 Piercing 447 | . . . . . . . . . . . . . . . . . . . . . . . . . . . . . 447 Highest Corruption 16 | . . . 4 4 2 . . . . . . 3 3 . . 1 1 . . . . . . . . . . . 16 Average Corruption 5 | . . . 4 4 2 . . . . . . 1 2 . . 1 1 . . . . . . . . . . . 10 Corruption Purged 24 | . . . . . . . . . . . . 1 3 . . . . . . . . . . . . . . . 20 Corruption Blocked 11 | . . . . . . . 8 . . . . . . . . . . . . . . . . . . . . . 3 Effects 51 | . . . 14 6 3 . . . . . . 1 . . . . . . . . . . . . . . . . 27 Message Errors 11 | . . . 4 1 1 . . . . . . . . . . . . . . . . . . . . . . . 5 Matter Fused 11 | . . . 3 1 1 . . . . . . . . . . . . . . . . . . . . . . . 6 Heat Flow Errors 6 | . . . 3 2 . . . . . . . . . . . . . . . . . . . . . . . . 1 Energy Discharges 6 | . . . . 1 . . . . . . . . . . . . . . . . . . . . . . . . 5 Parts Fused 2 | . . . . . . . . . . . . 1 . . . . . . . . . . . . . . . . 1 Data Loss (minor) 7 | . . . 3 . . . . . . . . . . . . . . . . . . . . . . . . . 4 Data Loss (major) 5 | . . . 1 1 . . . . . . . . . . . . . . . . . . . . . . . . 3 Misfires 1 | . . . . . 1 . . . . . . . . . . . . . . . . . . . . . . . . Alerts 1 | . . . . . . . . . . . . . . . . . . . . . . . . . . . . . 1 Misdirections 1 | . . . . . . . . . . . . . . . . . . . . . . . . . . . . . 1 Overload Shots . | . . . . . . . . . . . . . . . . . . . . . . . . . . . . . . Overflow Damage 7522 | . 49 . 16 . . 398 . 234 290 187 . 391 189 43 . 37 . 346 . 115 134 41 224 . 911 158 331 531 2897 Projectiles 71 | . . . . . . . . . . . . . . . . . . . . . . . . . . . . . 71 Explosions 345 | . . . . . . . . . . . . . . . . . . . . . . . . . . . . . 345 Melee 7106 | . 49 . 16 . . 398 . 234 290 187 . 391 189 43 . 37 . 346 . 115 134 41 224 . 911 158 331 531 2481 Knockbacks 9 | . . . . . . . . . . . . . 3 . . . . 3 . . . . . . . . . . 3 Impact 6 | . . . . . . . . . . . . . 3 . . . . 3 . . . . . . . . . . . Kinetic 3 | . . . . . . . . . . . . . . . . . . . . . . . . . . . . . 3 Secondary . | . . . . . . . . . . . . . . . . . . . . . . . . . . . . . . Self-Inflicted Damage 66 | . . . . . . 66 . . . . . . . . . . . . . . . . . . . . . . . Shots 3 | . . . . . . 3 . . . . . . . . . . . . . . . . . . . . . . . Rammed . | . . . . . . . . . . . . . . . . . . . . . . . . . . . . . . Targets Rammed . | . . . . . . . . . . . . . . . . . . . . . . . . . . . . . . Kicked . | . . . . . . . . . . . . . . . . . . . . . . . . . . . . . . Crushed . | . . . . . . . . . . . . . . . . . . . . . . . . . . . . . . Highest Temperature 263 | 15 40 6 263 178 136 11 7 15 13 27 71 112 63 1 . . . 48 2 17 . . . . 2 76 . . 136 Average Temperature 17 | 10 11 5 59 75 40 2 3 3 3 7 26 17 16 1 . . . 6 1 1 . . . . 2 19 . . 80 Received Heat Transfer 2210 | . 309 20 237 57 489 213 . 18 18 6 . 66 40 36 18 36 . 62 . 45 . . . . 9 18 18 . 495 Siege Activations . | . . . . . . . . . . . . . . . . . . . . . . . . . . . . . . Martial Activations . | . . . . . . . . . . . . . . . . . . . . . . . . . . . . . . Shielding Activations . | . . . . . . . . . . . . . . . . . . . . . . . . . . . . . . Robots Disrupted . | . . . . . . . . . . . . . . . . . . . . . . . . . . . . . . Combat Hostiles . | . . . . . . . . . . . . . . . . . . . . . . . . . . . . . . Robots Corrupted 8 | . . . . . . . . . . . . 1 3 1 . . . 3 . . . . . . . . . . . Combat Hostiles 4 | . . . . . . . . . . . . 1 3 . . . . . . . . . . . . . . . . Parts Fried 15 | . . . . . . . . . . . . 2 3 1 . . . 9 . . . . . . . . . . . Impact Corruptions 22 | . . . . . . . . . . . . 4 5 2 . . . 11 . . . . . . . . . . . Robots Melted 4 | . . . . . . . . . . . . . . . . . . . . . . . . . . . . . 4 Combat Hostiles 4 | . . . . . . . . . . . . . . . . . . . . . . . . . . . . . 4 Parts Melted 10 | . 1 . . . . . . . 1 . . . . . . . . . . . . . . . . 2 . . 6 Heat Transferred 2025 | 375 250 . . . . . . . . . . . . . . . . . . . . . . . . . . . 1400 Parts Sabotaged . | . . . . . . . . . . . . . . . . . . . . . . . . . . . . . . Parts Stolen . | . . . . . . . . . . . . . . . . . . . . . . . . . . . . . . Parts Stripped . | . . . . . . . . . . . . . . . . . . . . . . . . . . . . . . Power Chain Reactions . | . . . . . . . . . . . . . . . . . . . . . . . . . . . . . . Alert | -11 -10 -10 -9 -9 -8 -7 -7 -7 -7 -7 -7 -5 -5 -5 -5 -5 -5 -4 -4 -4 -4 -4 -4 -3 -3 -3 -2 -2 -2 ------- Run | Yrd Mat Min Mat Min Mat Fac Was Fac Sto Rec Scr Fac Ext Cet Arc Hub Gar Fac Was Fac Upp Upp Zhi Pro Res Qua Res Tes Frg Maximum Alert Level 5 | . 1 . 3 2 2 3 1 1 1 1 . 4 2 1 1 1 1 1 . 1 . . . . 1 . . . 5 Low Security (%) 50 | 100 65 100 40 . 30 3 . 88 96 43 . 14 . 45 76 29 . 65 100 97 . . . . 99 100 100 100 29 Level 1 16 | . 34 . 21 64 33 26 100 11 3 56 . 15 29 54 23 70 100 34 . 2 . . . . . . . . 5 Level 2 13 | . . . 33 35 36 9 . . . . . 41 70 . . . . . . . . . . . . . . . 9 Level 3 9 | . . . 4 . . 61 . . . . . 28 . . . . . . . . . . . . . . . . 11 Level 4 7 | . . . . . . . . . . . . . . . . . . . . . . . . . . . . . 30 Level 5 3 | . . . . . . . . . . . . . . . . . . . . . . . . . . . . . 13 High Security . | . . . . . . . . . . . . . . . . . . . . . . . . . . . . . . Max Security . | . . . . . . . . . . . . . . . . . . . . . . . . . . . . . . Peak Influence 2507 | 10 269 106 780 450 467 966 291 216 226 260 . 1130 620 376 260 397 301 325 82 359 . . . . 237 93 154 93 2507 Initial 553 | . 3 34 . 260 175 197 291 182 13 37 . . 553 200 144 . 251 157 46 8 . . . . 237 39 16 85 42 Average 395 | 2 144 36 332 367 303 623 280 124 59 191 . 510 498 227 117 222 277 193 48 56 . . . . 49 42 67 73 888 Influence Increases 15669 | 15 469 152 1271 320 615 1395 . 307 565 258 . 1801 787 361 156 495 50 753 56 995 10 115 10 220 563 219 260 221 3230 Destroy 0b10 Robot/C 4620 | . 240 120 660 220 280 260 . . 200 20 . 180 360 160 80 160 . . . 100 . . . . . . . 20 1560 Destroy 0b10 Robot/NC 680 | 15 25 . 85 . 10 65 . 20 40 15 . 35 10 10 . 10 . 40 . 25 10 10 10 10 55 10 15 35 120 Destroy Leader 796 | . 50 20 198 40 70 50 . 6 48 . . 36 40 . . 30 . 8 . 18 . . . . 14 . 2 6 160 Allied During Kill 583 | . . 12 . . . . . . 113 . . 5 152 123 55 60 . . . 55 . . . . . . . . 8 Trap Triggered on 0b10 90 | . . . . . . . . 10 . . . . 10 . . . . . . . . . . . 10 . . . 60 Successful Hack 834 | . 49 . 37 . 28 101 . 44 6 68 . 54 12 . . 13 24 93 . 137 . . . . 54 12 6 28 68 Select Force Hacks 490 | . 30 . 60 . . . . 80 60 150 . 50 . . . . . . . . . . . . 30 30 . . . Disable Machine 735 | . . . 60 . 15 45 . . 30 . . 150 15 . 15 30 . 15 . . . . . . . 120 . 15 225 Anti-Garrison Action 950 | . . . . . . 400 . . . . . 400 . . . . . . . . . . . . . . . . 150 Destroy Structure 1426 | . . . 6 . 2 69 . 27 8 5 . 126 28 38 6 72 11 102 56 150 . . . . 100 32 42 27 519 Advance Influence 150 | . . . . . . . . . . . . . . . . . . . . . . . . . 150 . . . . Partial Spotted 495 | . . . 75 . 15 60 . 45 15 . . 60 30 . . . 15 45 . 30 . . . . 45 15 15 30 . Lose Combat Pursuer 3720 | . 75 . 90 60 195 345 . 75 45 . . 705 30 30 . 120 . 450 . 480 . 105 . 210 105 . 180 60 360 Miscellaneous 100 | . . . . . . . . . . . . . 100 . . . . . . . . . . . . . . . . Influence Decreases 13165 | 10 386 240 603 538 631 995 573 537 499 130 225 671 1559 358 517 136 108 920 178 648 284 172 38 90 623 259 138 297 802 Entered New Map 3565 | . 2 54 . 408 275 237 543 79 18 60 225 . 577 158 217 . 108 144 88 4 134 17 28 . 43 31 14 67 34 Time Decay 6428 | 10 324 106 410 120 246 518 30 247 111 70 . 431 422 140 280 66 . 416 90 349 150 155 10 90 430 208 124 230 645 Search Patrol Dispatched 300 | . . . . . . . . . . . . 100 . . . . . 200 . . . . . . . . . . . Lost Part 573 | . 60 20 40 10 100 80 . . . . . 60 40 20 . 30 . 10 . . . . . . . 20 . . 83 Lost Ally 1090 | . . 60 3 . 10 10 . 10 220 . . 80 370 40 20 40 . . . 187 . . . . . . . . 40 Purge Threat 1209 | . . . 150 . . 150 . 201 150 . . . 150 . . . . 150 . 108 . . . . 150 . . . . Squads Dispatched 141 | . 3 . 7 . 5 14 . 5 4 . . 23 3 . . 4 . 12 . 18 . . . . 19 5 2 3 14 Investigation 93 | . 2 . 4 . 2 8 . 4 2 . . 16 2 . . 1 . 11 . 12 . . . . 14 3 1 2 9 Extermination 15 | . . . . . . 3 . 1 . . . 3 . . . . . 1 . 3 . . . . 1 . 1 1 1 Reinforcement 33 | . 1 . 3 . 3 3 . . 2 . . 4 1 . . 3 . . . 3 . . . . 4 2 . . 4 Assault . | . . . . . . . . . . . . . . . . . . . . . . . . . . . . . . Garrison . | . . . . . . . . . . . . . . . . . . . . . . . . . . . . . . Intercept . | . . . . . . . . . . . . . . . . . . . . . . . . . . . . . . Searches Triggered 3 | . . . . . . . . . . . . 1 . . . . . 2 . . . . . . . . . . . Unchained Authorized 1 | . . . . . . . . . . . . . . . . . . . . 1 . . . . . . . . . Construction Impeded 2 | . . . . . . . . . . . . . . . . 1 . . . 1 . . . . . . . . . Haulers Reinforced 7 | . . . . . . 1 . . 2 . . 1 . . . 1 . . . . . . . . 2 . . . . Active Scanning Responses . | . . . . . . . . . . . . . . . . . . . . . . . . . . . . . . Cargo Convoy Interrupts . | . . . . . . . . . . . . . . . . . . . . . . . . . . . . . . Stealth | -11 -10 -10 -9 -9 -8 -7 -7 -7 -7 -7 -7 -5 -5 -5 -5 -5 -5 -4 -4 -4 -4 -4 -4 -3 -3 -3 -2 -2 -2 --------- Run | Yrd Mat Min Mat Min Mat Fac Was Fac Sto Rec Scr Fac Ext Cet Arc Hub Gar Fac Was Fac Upp Upp Zhi Pro Res Qua Res Tes Frg Distress Signals 42 | . 5 . 2 . 6 1 . . 4 . . 4 . 3 . . . 1 . 4 . . . . 6 . . . 6 Communications Jammed . | . . . . . . . . . . . . . . . . . . . . . . . . . . . . . . Distress Signals . | . . . . . . . . . . . . . . . . . . . . . . . . . . . . . . Times Spotted 658 | . 43 12 55 14 47 44 6 10 14 1 . 75 19 13 6 17 . 35 6 51 . 4 . 11 14 22 14 10 115 Peak Tracking Total 17 | . 8 3 5 4 10 7 6 5 5 1 . 17 4 5 2 10 . 12 6 12 . 4 . 13 5 12 7 6 15 Tactical Retreats 119 | . 2 3 2 2 5 13 1 3 2 . . 19 1 1 . 3 . 15 1 14 . 3 . 4 5 1 5 2 12 ECM-based Alert Blocks 30 | . . . . . . . . . . . . 15 . . . . . 3 . 5 . . . . . 7 . . . Traps | -11 -10 -10 -9 -9 -8 -7 -7 -7 -7 -7 -7 -5 -5 -5 -5 -5 -5 -4 -4 -4 -4 -4 -4 -3 -3 -3 -2 -2 -2 ------- Run | Yrd Mat Min Mat Min Mat Fac Was Fac Sto Rec Scr Fac Ext Cet Arc Hub Gar Fac Was Fac Upp Upp Zhi Pro Res Qua Res Tes Frg Traps Triggered 30 | . 2 . 1 . . 4 . . . . . 3 . . . . . 2 . 4 . . . . . 1 . . 13 Indirectly . | . . . . . . . . . . . . . . . . . . . . . . . . . . . . . . Trap Hack Attempts 68 | . . . . . . . . . . . . . 31 . . . . . . 21 . . . . 16 . . . . Triggered 2 | . . . . . . . . . . . . . . . . . . . . 2 . . . . . . . . . Disarmed 14 | . . . . . . . . . 1 . . . 3 . . . . 4 . . . . . . 6 . . . . Reprogrammed 23 | . . . . . . 1 . 6 . . . . 3 . . . . . . 6 . . . . 7 . . . . Reused 19 | . . . . . . . . 1 . . . . 1 . . . . . . 10 . . . . 1 . . . 6 Traps Extracted 19 | . . . . . . 1 . 5 . . . . . . . . . . . 6 . . . . 6 . . . 1 Installed 19 | . . . . . . . . . . . . . . . . . . . . 10 . . . . 2 . . . 7 Triggered 9 | . . . . . . . . 1 . . . . 1 . . . . . . . . . . . 1 . . . 6 Most Traps Carried 6 | . . . . . . 1 1 6 6 6 6 6 6 6 6 6 6 6 6 6 2 2 2 2 6 6 6 6 6 Time Bombs Activated 1 | . . . . . . 1 . . . . . . . . . . . . . . . . . . . . . . . Exploded 1 | . . . . . . 1 . . . . . . . . . . . . . . . . . . . . . . . Machines | -11 -10 -10 -9 -9 -8 -7 -7 -7 -7 -7 -7 -5 -5 -5 -5 -5 -5 -4 -4 -4 -4 -4 -4 -3 -3 -3 -2 -2 -2 ---------- Run | Yrd Mat Min Mat Min Mat Fac Was Fac Sto Rec Scr Fac Ext Cet Arc Hub Gar Fac Was Fac Upp Upp Zhi Pro Res Qua Res Tes Frg Machines Disabled 56 | . . . 4 . 1 3 . . 2 . . 10 2 . 1 2 1 1 . . 1 . . . . 8 . 1 19 Max in Single Turn 2 | . . . 1 . 1 2 . . 1 . . 1 . . . 1 1 1 . . 1 . . . . 1 . 1 1 Garrison Access 20 | . . . . . 1 2 . 1 1 . . 3 . . . . . 4 . 3 . . . . 2 . 1 1 1 Network Hub 2 | . . . . . . . . . . . . . . . . 2 . . . . . . . . . . . . . Machines Repaired . | . . . . . . . . . . . . . . . . . . . . . . . . . . . . . . Machines Dismantled 2 | . . . . . . . . . . . . . . . . 2 . . . . . . . . . . . . . Machines Sabotaged . | . . . . . . . . . . . . . . . . . . . . . . . . . . . . . . Overloaded Fab Kills 5 | . . . . . . . . . . . . 5 . . . . . . . . . . . . . . . . . Hacking | -11 -10 -10 -9 -9 -8 -7 -7 -7 -7 -7 -7 -5 -5 -5 -5 -5 -5 -4 -4 -4 -4 -4 -4 -3 -3 -3 -2 -2 -2 --------- Run | Yrd Mat Min Mat Min Mat Fac Was Fac Sto Rec Scr Fac Ext Cet Arc Hub Gar Fac Was Fac Upp Upp Zhi Pro Res Qua Res Tes Frg Machines Accessed 294 | . 11 . 13 . 10 29 . 21 11 10 1 30 11 . . 6 1 26 . 31 1 1 4 1 31 16 4 10 15 Terminals 154 | . 8 . 10 . 5 14 . 14 8 5 . 11 9 . . 5 1 10 . 13 . . . 1 14 12 1 6 7 Fabricators 26 | . . . . . . 4 . 2 . . . 4 . . . . . 2 . 5 . . . . 3 . 1 1 4 Repair Stations 18 | . 1 . 1 . 1 4 . 2 . . . 2 . . . . . 1 . 3 . . . . 1 1 1 . . Recycling Units 44 | . 2 . . . 1 2 . 1 2 5 . 8 2 . . . . 8 . 5 . . . . 5 . . . 3 Scanalyzers 24 | . . . 2 . 2 3 . 1 . . . 2 . . . . . 1 . 2 . . . . 5 3 . 2 1 Garrison Access 21 | . . . . . 1 2 . 1 1 . . 3 . . . 1 . 4 . 3 . . . . 3 . 1 1 . Total Hacks 853 | . 38 . 42 . 37 90 . 62 30 24 1 66 21 . . 12 5 65 . 105 3 1 17 7 104 39 13 30 41 Successful 616 | . 22 . 28 . 20 57 . 35 24 15 1 48 14 . . 8 2 50 . 77 3 1 17 7 89 33 10 25 30 Failed 232 | . 16 . 13 . 17 32 . 27 6 9 . 18 7 . . 4 3 15 . 27 . . . . 14 5 3 5 11 Catastrophic 26 | . 2 . 1 . 3 3 . 1 . . . 3 1 . . 1 1 3 . 4 . . . . . 2 . 1 . Database Lockouts 5 | . . . 1 . . 1 . . . . . . . . . . . . . 1 . . . . 1 1 . . . Manual 468 | . 36 . 30 . 22 35 . 40 20 23 . 34 14 1 . 11 2 34 . 59 1 . . . 35 24 4 20 23 Terminals 524 | . 31 . 30 . 20 44 . 46 26 18 . 24 19 . . 11 5 38 . 66 . . . 7 62 28 5 23 21 Fabricators 78 | . . . . . . 12 . 5 . . . 10 . . . . . 5 . 15 . . . . 8 . 5 3 15 Repair Stations 40 | . 2 . 3 . 1 13 . 3 . . . 3 . . . . . 3 . 5 . . . . 4 1 2 . . Recycling Units 56 | . 5 . . . 3 4 . 1 2 6 . 10 2 . . . . 9 . 5 . . . . 5 . . . 4 Scanalyzers 105 | . . . 9 . 12 12 . 4 . . . 15 . . . . . 6 . 11 . . . . 22 10 . 3 1 Garrison Access 28 | . . . . . 1 5 . 3 2 . . 4 . . . 1 . 4 . 3 . . . . 3 . 1 1 . Terminal Hacks 177 | . 4 . 5 . 1 15 . 13 9 2 1 3 5 . . 4 2 16 . 21 3 1 17 7 30 5 2 8 3 Record 17 | . . . . . . . . . . . 1 . . . . . . . . . 3 . 5 7 . 1 . . . Part Schematic 25 | . . . . . . 1 . . . 1 . 1 . . . . . 1 . 3 . . 4 . 10 . . 3 1 Robot Schematic 3 | . . . . . . 1 . . . . . . . . . . . . . . . . . . 2 . . . . Robot Analysis 13 | . 1 . . . . 4 . . . . . . . . . . . . . 3 . . 4 . 1 . . . . Prototype ID Bank 13 | . . . . . 1 . . . 2 1 . . . . . . . 1 . . . . 4 . 3 1 . . . Open Door 7 | . . . . . . . . . 1 . . 1 3 . . . . . . . . 1 . . . 1 . . . Branch Access Points 5 | . . . 1 . . . . 1 1 . . . . . . . . . . 1 . . . . . . 1 . . Machine Index 3 | . . . . . . . . . . . . . . . . . . . . . . . . . 1 . 1 . 1 Terminal Index 7 | . 1 . . . . 1 . 1 . . . . . . . . . 1 . 1 . . . . 2 . . . . Repair Station Index 1 | . . . . . . . . 1 . . . . . . . . . . . . . . . . . . . . . Recycling Unit Index 1 | . 1 . . . . . . . . . . . . . . . . . . . . . . . . . . . . Scanalyzer Index 2 | . . . . . . . . 1 . . . . . . . . . . . . . . . . 1 . . . . Garrison Index 2 | . . . . . . . . . . . . . . . . . . . . 1 . . . . . . . 1 . Alert Level 3 | . . . . . . . . . 1 . . . . . . . . 2 . . . . . . . . . . . Unreport Threat 10 | . . . 1 . . 1 . 2 1 . . . 2 . . . . 1 . 1 . . . . 1 . . . . Locate Traps 14 | . . . . . . 4 . 2 1 . . . . . . . . 3 . 2 . . . . 1 1 . . . Disarm Traps 3 | . . . . . . . . . 1 . . . . . . . . 1 . . . . . . 1 . . . . Reprogram Traps 4 | . . . . . . 1 . 1 . . . . . . . 2 . . . . . . . . . . . . . Dispatch Records 1 | . . . . . . . . . . . . . . . . . . . . . . . . . 1 . . . . Maintenance Status 1 | . . . . . . . . . . . . . . . . . . . . . . . . . 1 . . . . Security Status 1 | . . . . . . . . . . . . . . . . . . . . . . . . . . 1 . . . Transport Status 1 | . . . . . . . . . . . . . . . . . . . . . . . . . 1 . . . . Extermination Status 5 | . . . . . . . . . . . . . . . . . . 1 . 2 . . . . 1 . . 1 . Recall Extermination 9 | . . . . . . . . 1 . . . . . . . . . 1 . 4 . . . . . . . 3 . Recall Reinforcements 1 | . . . . . . . . . . . . . . . . . . . . . . . . . 1 . . . . Hauler Manifests 3 | . . . . . . . . . . . . . . . . . . 1 . 1 . . . . 1 . . . . Registered Components 3 | . . . . . . . . 1 . . . . . . . . . 1 . 1 . . . . . . . . . Registered Prototypes 2 | . . . . . . . . . . . . . . . . . . 1 . . . . . . 1 . . . . Zone Layout 14 | . 1 . 3 . . 2 . 2 1 . . 1 . . . 2 . 1 . 1 . . . . . . . . . Garrison Registry 1 | . . . . . . . . . . . . . . . . . 1 . . . . . . . . . . . . Security Stations 1 | . . . . . . . . . . . . . . . . . 1 . . . . . . . . . . . . Proto ID Catalog 1 | . . . . . . . . . . . . . . . . . . . . . . . . . . . . . 1 Fabricator Hacks 38 | . . . . . . 6 . 1 . . . 4 . . . . . 2 . 6 . . . . 5 . 2 2 10 Network Status 6 | . . . . . . 3 . 1 . . . 1 . . . . . . . 1 . . . . . . . . . Load Schematic 20 | . . . . . . 2 . . . . . 2 . . . . . 1 . 5 . . . . 3 . 1 1 5 Build 12 | . . . . . . 1 . . . . . 1 . . . . . 1 . . . . . . 2 . 1 1 5 Repair Station Hacks 27 | . 2 . 2 . . 9 . 2 . . . 2 . . . . . 2 . 2 . . . . 4 . 2 . . Scan Component 14 | . 1 . 1 . . 5 . 1 . . . 1 . . . . . 1 . 1 . . . . 2 . 1 . . Repair 13 | . 1 . 1 . . 4 . 1 . . . 1 . . . . . 1 . 1 . . . . 2 . 1 . . Recycling Unit Hacks . | . . . . . . . . . . . . . . . . . . . . . . . . . . . . . . Scanalyzer 81 | . . . 3 . 7 10 . 3 . . . 13 . . . . . 6 . 8 . . . . 19 8 . 3 1 Insert Component 33 | . . . 1 . 3 5 . . . . . 3 . . . . . 2 . 3 . . . . 9 4 . 3 . Analyze 32 | . . . 1 . 4 5 . . . . . 6 . . . . . 2 . 4 . . . . 8 2 . . . Retrieve Study 16 | . . . 1 . . . . 3 . . . 4 . . . . . 2 . 1 . . . . 2 2 . . 1 Garrison Access Hacks 17 | . . . . . 1 . . 1 1 . . 1 . . . 1 . 4 . 3 . . . . 3 . 1 1 . Unlock Access 2 | . . . . . . . . . . . . . . . . 1 . . . . . . . . 1 . . . . Seal Access 15 | . . . . . 1 . . 1 1 . . 1 . . . . . 4 . 3 . . . . 2 . 1 1 . Unauthorized Hacks 276 | . 16 . 18 . 11 17 . 15 14 13 . 25 9 . . 3 . 20 . 37 . . . . 28 20 3 11 16 Terminals 194 | . 13 . 15 . 9 10 . 11 12 8 . 9 7 . . 3 . 10 . 26 . . . . 19 18 2 10 12 Track 19 | . . . 1 . . 2 . 2 1 . . . . . . 3 . 1 . 3 . . . . 3 1 1 . 1 Assimilate 19 | . 2 . 3 . 1 1 . 1 2 . . 1 1 . . . . . . 2 . . . . 1 3 . 1 . Botnet 61 | . 4 . 4 . 2 1 . 3 3 3 . 1 1 . . . . 3 . 9 . . . . 9 7 1 4 6 Disrupt 8 | . 1 . 1 . 1 1 . . 1 . . 1 . . . . . 1 . 1 . . . . . . . . . Operators 2 | . 1 . . . . . . . . . . . . . . . . . . 1 . . . . . . . . . Skim 85 | . 5 . 6 . 5 5 . 5 5 5 . 6 5 . . . . 5 . 10 . . . . 6 7 . 5 5 Fabricators 20 | . . . . . . 2 . 1 . . . 5 . . . . . 2 . 4 . . . . 3 . 1 1 1 Prioritize 6 | . . . . . . 1 . . . . . 1 . . . . . 1 . . . . . . 1 . 1 1 . Liberate 2 | . . . . . . . . . . . . 2 . . . . . . . . . . . . . . . . . Haulers 1 | . . . . . . . . . . . . . . . . . . . . . . . . . 1 . . . . Overload 1 | . . . . . . . . . . . . 1 . . . . . . . . . . . . . . . . . Download 1 | . . . . . . . . 1 . . . . . . . . . . . . . . . . . . . . . Recompile 9 | . . . . . . 1 . . . . . 1 . . . . . 1 . 4 . . . . 1 . . . 1 Repair Stations 8 | . . . 1 . 1 1 . 1 . . . 1 . . . . . . . 2 . . . . . 1 . . . Mechanics 1 | . . . . . . . . 1 . . . . . . . . . . . . . . . . . . . . . Patch 7 | . . . 1 . 1 1 . . . . . 1 . . . . . . . 2 . . . . . 1 . . . Recycling Units 45 | . 3 . . . 1 2 . 1 2 5 . 8 2 . . . . 8 . 5 . . . . 5 . . . 3 Reject 1 | . 1 . . . . . . . . . . . . . . . . . . . . . . . . . . . . Recyclers 1 | . . . . . . 1 . . . . . . . . . . . . . . . . . . . . . . . Mask 3 | . 1 . . . 1 1 . . . . . . . . . . . . . . . . . . . . . . . Tunnel 9 | . 1 . . . . . . 1 2 5 . . . . . . . . . . . . . . . . . . . Fedlink 29 | . . . . . . . . . . . . 8 2 . . . . 8 . 5 . . . . 5 . . . 1 Scraphulk 2 | . . . . . . . . . . . . . . . . . . . . . . . . . . . . . 2 Scanalyzers 5 | . . . 2 . . . . 1 . . . . . . . . . . . . . . . . 1 1 . . . Extract 5 | . . . 2 . . . . 1 . . . . . . . . . . . . . . . . 1 1 . . . Garrison Access 4 | . . . . . . 2 . . . . . 2 . . . . . . . . . . . . . . . . . Jam 4 | . . . . . . 2 . . . . . 2 . . . . . . . . . . . . . . . . . Data Cores Recovered 10 | . . . . . 1 2 . . . . . . . . . 2 . 1 . . . . . . 1 . 1 2 . Used . | . . . . . . . . . . . . . . . . . . . . . . . . . . . . . . Hacking Detections 168 | . 10 . 11 . 8 25 . 17 8 6 . 13 6 . . 3 . 8 . 15 . . . 1 12 8 1 4 12 Full Trace Events 21 | . 1 . 1 . 2 4 . 1 . . . 3 . . . . . 1 . 1 . . . . 2 . 1 1 3 Feedback Events . | . . . . . . . . . . . . . . . . . . . . . . . . . . . . . . Feedback Blocked . | . . . . . . . . . . . . . . . . . . . . . . . . . . . . . . Robot Schematics Acquired 10 | . . . . . . 1 . . . . . . . . . . . . . . . . . . 2 1 . . 6 Robots Built . | . . . . . . . . . . . . . . . . . . . . . . . . . . . . . . Authchips . | . . . . . . . . . . . . . . . . . . . . . . . . . . . . . . Time . | . . . . . . . . . . . . . . . . . . . . . . . . . . . . . . Total Robot Build Rating . | . . . . . . . . . . . . . . . . . . . . . . . . . . . . . . Part Schematics Acquired 72 | . . . 13 . . 6 . 4 . 1 . 2 . . . . . 2 . 6 . . 4 . 13 4 . 3 14 Parts Built 19 | . . . . . . 2 . . . . . 1 . . . . . 2 . . . . . . 3 . 1 1 9 Authchips 3 | . . . . . . 1 . . . . . . . . . . . . . . . . . . 1 . . . 1 Time 626 | . . . . . . 23 . . . . . 102 . . . . . 25 . . . . . . 141 . 51 55 229 Total Part Build Rating 124 | . . . . . . 10 . . . . . 8 . . . . . 2 . . . . . . 22 . 8 9 65 Part Studies Acquired 16 | . . . 1 . . . . 3 . . . 4 . . . . . 2 . 1 . . . . 2 2 . . 1 Parts Repaired 12 | . 1 . 1 . . 3 . 1 . . . 1 . . . . . 1 . 1 . . . . 2 . 1 . . Time 701 | . 26 . 26 . . 348 . 38 . . . 56 . . . . . 34 . 31 . . . . 74 . 68 . . Parts Recycled . | . . . . . . . . . . . . . . . . . . . . . . . . . . . . . . Recycled Matter . | . . . . . . . . . . . . . . . . . . . . . . . . . . . . . . Retrieved Matter . | . . . . . . . . . . . . . . . . . . . . . . . . . . . . . . Retrieved Components . | . . . . . . . . . . . . . . . . . . . . . . . . . . . . . . Parts Scanalyzed 21 | . . . 1 . 1 4 . . . . . 2 . . . . . 2 . 3 . . . . 7 1 . . . Part Schematics Acquired 20 | . . . 1 . . 5 . . . . . 2 . . . . . 2 . 3 . . . . 6 1 . . . Parts Damaged 2 | . . . . . 1 1 . . . . . . . . . . . . . . . . . . . . . . . Bothacking | -11 -10 -10 -9 -9 -8 -7 -7 -7 -7 -7 -7 -5 -5 -5 -5 -5 -5 -4 -4 -4 -4 -4 -4 -3 -3 -3 -2 -2 -2 ------------ Run | Yrd Mat Min Mat Min Mat Fac Was Fac Sto Rec Scr Fac Ext Cet Arc Hub Gar Fac Was Fac Upp Upp Zhi Pro Res Qua Res Tes Frg Used RIF Installer 1 | . . . . . . . . . . . . . . . . . 1 . . . . . . . . . . . . Robots Hacked 6 | . . . . . . 2 . . . . . . . . 2 . . 2 . . . . . . . . . . . Non-combat 6 | . . . . . . 2 . . . . . . . . 2 . . 2 . . . . . . . . . . . Combat . | . . . . . . . . . . . . . . . . . . . . . . . . . . . . . . Robot Hacks Applied 7 | . . . . . . 2 . . . . . . . . 3 . . 2 . . . . . . . . . . . find_chute 4 | . . . . . . 2 . . . . . . . . . . . 2 . . . . . . . . . . . check_alert 3 | . . . . . . . . . . . . . . . 3 . . . . . . . . . . . . . . Relay Couplers Released 1 | . . . . . . . . . . . . . . . . . . . . . . . . . . . . . 1 Machine Destruction 1 | . . . . . . . . . . . . . . . . . . . . . . . . . . . . . 1 Fabnet Peak Effective % . | . . . . . . . . . . . . . . . . . . . . . . . . . . . . . . Robots Rewired 14 | . . . . . . . . . . . . . 14 . . . . . . . . . . . . . . . . Allies Hacked . | . . . . . . . . . . . . . . . . . . . . . . . . . . . . . . Hacks Repelled . | . . . . . . . . . . . . . . . . . . . . . . . . . . . . . . Allies | -11 -10 -10 -9 -9 -8 -7 -7 -7 -7 -7 -7 -5 -5 -5 -5 -5 -5 -4 -4 -4 -4 -4 -4 -3 -3 -3 -2 -2 -2 -------- Run | Yrd Mat Min Mat Min Mat Fac Was Fac Sto Rec Scr Fac Ext Cet Arc Hub Gar Fac Was Fac Upp Upp Zhi Pro Res Qua Res Tes Frg Total Allies 71 | . 1 3 1 . 1 1 . 1 12 . . 4 20 5 . . . . 19 1 . . . . . . . . 2 Largest Group 19 | . 1 3 1 . 1 1 . 1 11 . . 2 13 5 4 2 . . 19 15 . . . . . . . . 2 Highest-Rated Group 684 | . 10 40 10 . 10 10 . 10 183 . . 108 381 473 377 185 . . 684 584 . . . . . . . . 278 Highest-Rated Ally 159 | . 10 16 10 . 10 10 . 10 29 . . 54 159 143 96 96 . . 50 50 . . . . . . . . 139 Initial UFD Resources 133 | . . . . . . . . . . . . 37 63 67 67 67 67 71 97 97 107 107 107 111 111 131 133 133 133 Total Orders 13 | . . . 2 . . 3 . . . . . . . . 2 . . . . 2 . . . . . . . . 4 STAY 5 | . . . 1 . . 2 . . . . . . . . . . . . . 1 . . . . . . . . 1 ROAM 1 | . . . . . . . . . . . . . . . 1 . . . . . . . . . . . . . . FOLLOW 5 | . . . 1 . . 1 . . . . . . . . 1 . . . . 1 . . . . . . . . 1 RETURN 2 | . . . . . . . . . . . . . . . . . . . . . . . . . . . . . 2 Ally Attacks 555 | . . 22 . . . . . . 87 . . 19 141 46 31 36 . . 109 35 . . . . . . . . 29 Total Damage 19137 | . . 184 . . . . . . 1106 . . 920 2880 2304 1062 1447 . . 5622 1472 . . . . . . . . 2140 Kills 81 | . . 6 . . . . . . 9 . . 8 15 8 4 7 . . 10 9 . . . . . . . . 5 Allies Corrupted . | . . . . . . . . . . . . . . . . . . . . . . . . . . . . . . Allies Melted 4 | . . . . . . . . . . . . 1 . . . . . . . . . . . . . . . . 3 Intel | -11 -10 -10 -9 -9 -8 -7 -7 -7 -7 -7 -7 -5 -5 -5 -5 -5 -5 -4 -4 -4 -4 -4 -4 -3 -3 -3 -2 -2 -2 ------- Run | Yrd Mat Min Mat Min Mat Fac Was Fac Sto Rec Scr Fac Ext Cet Arc Hub Gar Fac Was Fac Upp Upp Zhi Pro Res Qua Res Tes Frg Active Infowar (turns) 14831 | 5 780 283 364 . . 406 61 575 268 2 . 900 738 . . . . 925 188 1408 300 566 85 196 1332 496 266 485 4202 Optics 3885 | . . . . . . . . . . . . . . . . . . . . . . . . . . . . . 3885 Sensors 10356 | . 344 283 364 . . 406 61 575 268 2 . 860 738 . . . . 913 188 1408 300 566 85 196 1332 464 206 485 312 A.S.S. 1719 | . . . . . . . . . . . . . . . . . . . . . . . . . . . . . 1719 Terrain 5263 | . . . . . . . . . . . . . . . . . . 509 188 1013 300 566 84 196 986 461 200 485 275 Structural 749 | . 8 283 264 . . . . . . . . 194 . . . . . . . . . . . . . . . . . Seismic 789 | 5 436 . . . . . . . . . . . . . . . . 348 . . . . . . . . . . . Cloaking 7365 | . . . . . . . . . . . . . . . . . . 306 188 1185 300 558 85 196 1294 278 65 236 2674 ECM 1093 | . . . . . . 6 . . . . . 298 . . . . . 242 188 299 . . . . 4 46 7 1 2 Robot Analysis Total 12 | . 1 . . . . 4 . . . . . . . . . . . . . 2 . . 4 . 1 . . . . Derelict Logs Recovered 6 | . . 1 . 2 . . . . . . . . . . . . . . . . 1 2 . . . . . . . Drone Launches 5 | . . . . . . . . . . . . . . . . . . . . . . . . . . . . . 5 Drone Recoveries 5 | . . . . . . . . . . . . . . . . . . . . . . . . . . . . . 5 Exploration | -11 -10 -10 -9 -9 -8 -7 -7 -7 -7 -7 -7 -5 -5 -5 -5 -5 -5 -4 -4 -4 -4 -4 -4 -3 -3 -3 -2 -2 -2 ------------- Run | Yrd Mat Min Mat Min Mat Fac Was Fac Sto Rec Scr Fac Ext Cet Arc Hub Gar Fac Was Fac Upp Upp Zhi Pro Res Qua Res Tes Frg Turns Passed 19743 | 91 795 283 1095 258 536 1433 61 593 275 148 304 1095 1037 297 673 155 56 1003 188 1408 300 566 85 196 1332 496 266 485 4233 Spaces Moved 34839 | 44 1049 600 1573 525 655 2912 106 1192 590 477 1238 2194 891 389 148 346 118 1876 351 2928 802 1063 231 478 3789 1128 408 887 5851 Core 438 | 44 311 . . . . 1 . . . . . . . . 82 . . . . . . . . . . . . . . Treads 2 | . 2 . . . . . . . . . . . . . . . . . . . . . . . . . . . . Legs . | . . . . . . . . . . . . . . . . . . . . . . . . . . . . . . Wheels . | . . . . . . . . . . . . . . . . . . . . . . . . . . . . . . Hover 3069 | . . . . . . . . . . . . . . . . . . . . . . . . . . . . . 3069 Flight 31330 | . 736 600 1573 525 655 2911 106 1192 590 477 1238 2194 891 389 66 346 118 1876 351 2928 802 1063 231 478 3789 1128 408 887 2782 Fastest Speed 19 | 50 37 37 29 29 31 24 24 24 23 23 23 23 24 24 24 24 29 27 28 28 29 29 20 20 20 21 25 29 19 Average Speed 30 | 50 44 37 30 30 33 27 24 24 23 23 23 23 24 25 405 24 29 28 28 28 29 29 23 20 23 24 28 29 34 Slowest Speed 750 | 50 160 37 32 31 112 109 24 27 24 23 23 24 34 92 750 29 29 30 28 29 29 29 98 20 24 25 29 101 200 Overloaded Moves . | . . . . . . . . . . . . . . . . . . . . . . . . . . . . . . Propulsion Burnouts . | . . . . . . . . . . . . . . . . . . . . . . . . . . . . . . Robots Hopped 216 | . 16 4 14 7 19 21 5 3 5 9 . 17 8 3 . 3 . 6 1 36 . . . 1 11 2 3 2 20 Potential Cave-ins 4 | . . . . . . . . . . . . . . . . . . . . . . . . . . . . . 4 Cave-ins Triggered 1 | . . . . . . . . . . . . . . . . . . . . . . . . . . . . . 1 Teleports 2 | . . . . . . . . . . . . . . . . . . . . . . . . . . 1 . . 1 Exploration Rate (%) 70 | 4 97 73 93 95 72 68 73 47 66 98 83 67 84 73 75 50 23 60 90 59 93 89 60 77 79 95 14 69 86 Regions Visited 29 Branch Regions 16 Pre-discovered Areas 34 | . 1 . 2 1 . 4 . 4 3 4 . 4 2 . . . . 1 . 2 1 1 3 . . . . 1 . Known Exits Taken 20 | . . . 1 1 . . . 1 1 1 1 1 1 1 1 1 . . . 1 1 1 1 1 1 1 1 1 . Unknown Exits Taken 4 | 1 1 1 . . 1 . . . . . . . . . . . . . . . . . . . . . . . . Scrap Searched 15 | . . 1 . 1 . . . . . . 2 . . . . . . . . . 3 3 . 5 . . . . . Spaces Dug 449 | . . . 5 . . 25 . 27 8 5 . 38 10 1 . 18 3 51 . 61 6 7 . 4 50 17 14 9 90 Terrain Destroyed 698 | . . . 5 . 2 88 . 27 8 5 . 38 10 2 2 18 3 51 . 61 6 7 . 4 50 17 14 9 271 Melee 368 | . . . 5 . . 25 . 27 8 5 . 32 10 1 . 16 3 51 . 61 6 7 . 4 50 17 14 9 17 Projectile 61 | . . . . . 2 . . . . . . 6 . 1 2 2 . . . . . . . . . . . . 48 AOE 269 | . . . . . . 63 . . . . . . . . . . . . . . . . . . . . . . 206 Terrain Rammed . | . . . . . . . . . . . . . . . . . . . . . . . . . . . . . . Walls Destroyed . | . . . . . . . . . . . . . . . . . . . . . . . . . . . . . . Machines Disabled . | . . . . . . . . . . . . . . . . . . . . . . . . . . . . . . Actions | -11 -10 -10 -9 -9 -8 -7 -7 -7 -7 -7 -7 -5 -5 -5 -5 -5 -5 -4 -4 -4 -4 -4 -4 -3 -3 -3 -2 -2 -2 --------- Run | Yrd Mat Min Mat Min Mat Fac Was Fac Sto Rec Scr Fac Ext Cet Arc Hub Gar Fac Was Fac Upp Upp Zhi Pro Res Qua Res Tes Frg Total 41742 | 83 1227 639 1910 576 829 3387 135 1422 664 486 1256 2618 1659 568 202 375 129 2212 438 3349 855 1301 253 566 4052 1277 515 1069 7690 Wait 4569 | 1 73 21 133 15 85 309 35 193 37 . 1 316 643 141 31 . . 217 86 291 34 223 . 83 99 84 67 143 1208 Move 34398 | 43 1016 591 1545 510 616 2870 97 1185 580 458 1237 2163 874 383 147 339 117 1864 348 2857 801 1062 230 475 3766 1123 402 882 5817 Hop 197 | . 16 4 13 7 19 21 3 3 4 9 . 13 8 2 . 3 . 6 1 34 . . . 1 11 2 2 2 13 Pick Up 158 | 3 6 2 12 3 6 14 . 1 . 3 5 5 . 1 . . . 6 . 9 2 . 1 . 21 7 2 6 43 Fast Attach 208 | 5 12 3 10 2 7 27 . 1 4 . 6 19 4 13 1 1 . 17 1 2 1 1 8 . 5 6 4 . 48 Attach 104 | . 4 1 6 2 3 11 . 1 . 1 . 5 1 3 1 . 2 1 . 2 2 . 1 . 3 4 4 . 46 Detach 68 | 1 1 1 2 . . 5 . . . . . 3 . 1 . 2 2 3 1 . 2 . . . 1 2 5 . 36 Swap 212 | . 7 1 23 4 6 13 . 3 4 4 . 8 7 2 2 3 1 9 1 26 . 2 2 . 19 7 5 10 43 Drop 276 | 2 11 2 21 7 10 22 . . 6 2 7 15 3 11 1 . 1 15 . 13 3 1 7 . 23 8 4 7 74 Fire 523 | 28 73 10 135 26 77 3 . . . . . 11 1 5 16 1 . . . . . . . . . . . . 137 Melee 756 | . 8 3 10 . . 75 . 35 29 9 . 60 23 6 3 19 6 74 . 81 10 12 4 7 86 34 20 19 123 Ram . | . . . . . . . . . . . . . . . . . . . . . . . . . . . . . . Kick . | . . . . . . . . . . . . . . . . . . . . . . . . . . . . . . Crush . | . . . . . . . . . . . . . . . . . . . . . . . . . . . . . . Escape Stasis 80 | . . . . . . 15 . . . . . . . . . . . . . 3 . . . . . . . . 62 Rewire 64 | . . . . . . . . . . . . . 64 . . . . . . . . . . . . . . . . Trap 89 | . . . . . . 2 . . . . . . 31 . . . . . . 31 . . . . 18 . . . 7 Miscellaneous 40 | . . . . . . . . . . . . . . . . 7 . . . . . . . . . . . . 33 Route ------- -11/Scrapyard -10/Materials (discovered 6 exits: *Mat x3 / [*Min x2] / [*Sub]) -10/Mines -9/Materials (discovered 4 exits: *Mat x3 / *Min) -9/Mines (discovered 2 exits: *Mat x2) -8/Materials (discovered 2 exits: *Fac x2) -7/Factory (discovered 5 exits: *Fac x2 / *Sto / *Low x2) -7/Waste -7/Factory (discovered 6 exits: Fac x3 / *Sto / *Low x2) -7/Storage (discovered 2 exits: Fac / *Rec) -7/Recycling (discovered 2 exits: *Fac / *Scr) -7/Scraptown (discovered 2 exits: *Fac x2) -5/Factory (discovered 8 exits: *Fac x4 / *Upp x2 / *Ext x2) -5/Extension (discovered 3 exits: *Fac x2 / *Cet) -5/Cetus (discovered 3 exits: *Fac x2 / *Arc) -5/Archives (discovered 3 exits: Fac / *Hub x2) -5/Hub_04(d) (discovered 4 exits: *Fac x3 / Gar) -5/Garrison (discovered 3 exits: *Fac x3) -4/Factory (discovered 6 exits: *Res x4 / *Upp / Arm) -4/Waste -4/Factory (discovered 5 exits: *Res x2 / *Upp x2 / Arm) -4/Upper Caves -4/Upper Caves (discovered 2 exits: *Res / *Zhi) -4/Zhirov -3/Proximity Caves -3/Research (discovered 6 exits: *Res x3 / *Qua x2 / Gar) -3/Quarantine -2/Research (discovered 2 exits: *Tes x2) -2/Testing (discovered 3 exits: *Acc / *Sec / *Frg) -2/Protoforge 0bPrime History --------- Turn | Location | Event 7 | -11/Scrapyard | Discovered new exit (range 15) 92 | -11/Scrapyard | Entered Materials 173 | -10/Materials | Discovered new exit (range 12) 217 | -10/Materials | Discovered new exit (range 14) 304 | -10/Materials | Build established: Mutant 365 | -10/Materials | Discovered new exit (range 9) 533 | -10/Materials | Core integrity fell below 50% 539 | -10/Materials | Discovered new exit (range 13) 563 | -10/Materials | Lost 5 parts (1p1n1u2w) 607 | -10/Materials | Discovered new exit (range 10) 798 | -10/Materials | Discovered new exit (range 12) 841 | -10/Materials | Repaired Flight Unit 887 | -10/Materials | Entered Mines 888 | -10/Mines | Assembled infested the area 894 | -10/Mines | Assisted by bots powering up and referring to "LRC-V3" 981 | -10/Mines | Discovered new exit (range 8) 1094 | -10/Mines | Learned 2 Materials zone layouts 1170 | -10/Mines | Entered Materials 1170 | -9/Materials | Evolved 2 slots: Propulsion x2 1171 | -9/Materials | Identified exit to Materials 1274 | -9/Materials | Central database locked down 1298 | -9/Materials | Discovered new exit (range 9) 1440 | -9/Materials | Discovered exit to Materials (range 13) 1783 | -9/Materials | Build established: Sprinter 1829 | -9/Materials | Learned Storage trap positions 1899 | -9/Materials | Learned location of Mines (-9) 1934 | -9/Materials | Identified exit to Mines 1943 | -9/Materials | Destroyed 7 combat bots 2008 | -9/Materials | Learned Storage stockpile data 2047 | -9/Materials | Learned location of 1 exit from Recycling 2098 | -9/Materials | Learned 4 Recycling zone layouts 2129 | -9/Materials | Discovered exit to Materials (range 16) 2161 | -9/Materials | Learned Storage interactive machine intel 2231 | -9/Materials | Repaired Flight Unit+ 2265 | -9/Materials | Entered Mines 2339 | -9/Mines | Discovered exit to Materials (range 5) 2438 | -9/Mines | Core integrity fell below 50% 2447 | -9/Mines | Discovered exit to Materials (range 9) 2459 | -9/Mines | Learned location of Storage (-7) 2490 | -9/Mines | Found a damaged Exp. Sensor Array with a note attached 2492 | -9/Mines | Found Prototype Device 2502 | -9/Mines | Learned Materials terminal intel 2523 | -9/Mines | Entered Materials 2523 | -8/Materials | Evolved 2 slots: Utility x2 2524 | -8/Materials | Loaded intel: 12 terminal locations 2525 | -8/Materials | Identified Exp. Sensor Array 2626 | -8/Materials | Build established: Scavenger-Sprinter 2786 | -8/Materials | Discovered new exit (range 8) 2921 | -8/Materials | Core integrity fell below 50% 2963 | -8/Materials | Lost 5 parts (1p1n1u2w) 3049 | -8/Materials | Discovered new exit (range 15) 3057 | -8/Materials | Learned location of 3 exits from Factory 3059 | -8/Materials | Entered Factory 3059 | -7/Factory | Evolved 2 slots: Propulsion x1, Utility x1 3060 | -7/Factory | Identified exit to Storage 3061 | -7/Factory | Identified exit to Lower Caves 3061 | -7/Factory | Identified exit to Factory 3120 | -7/Factory | Noticed a derelict Sapper rigging charges 3364 | -7/Factory | Found Rocket Array 3551 | -7/Factory | Lost 4 parts (1p2n1u) 3810 | -7/Factory | Fabricated Stasis Canceller (x2) 3847 | -7/Factory | Learned 2 Upper Caves zone layouts 3918 | -7/Factory | Repaired Surge Thruster? 3924 | -7/Factory | Learned location of Warlord (-5) 3927 | -7/Factory | Repaired Imp. Propulsion Shielding 3993 | -7/Factory | Learned location of Zion (-6) 4140 | -7/Factory | Learned 2 Lower Caves zone layouts 4223 | -7/Factory | Repaired Broken Exp. Sensor Array? 4249 | -7/Factory | Learned location of 3 exits from Factory 4318 | -7/Factory | Learned location of Upper Caves (-5) 4341 | -7/Factory | Central database locked down 4492 | -7/Factory | Manually triggered Chute Trap 4492 | -7/Factory | Sucked down chute 4492 | -7/Factory | Entered Waste 4496 | -7/Waste | Spotted C-40 Crusher 4499 | -7/Waste | Spotted C-40 Crusher 4503 | -7/Waste | Spotted C-40 Crusher 4506 | -7/Waste | Spotted C-40 Crusher 4506 | -7/Waste | Spotted C-40 Crusher 4507 | -7/Waste | EMP discharged 4510 | -7/Waste | Spotted C-40 Crusher 4515 | -7/Waste | Discovered new exit (range 11) 4517 | -7/Waste | Identified exit to Factory 4553 | -7/Waste | Entered Factory 4665 | -7/Factory | Learned location of Extension (-5) 4701 | -7/Factory | Build established: Hacker-Sprinter 4760 | -7/Factory | Learned location of 2 exits from Archives 4794 | -7/Factory | Learned location of 2 exits from Upper Caves 4820 | -7/Factory | Learned Hub_04(d) security intel 4858 | -7/Factory | Learned location of Lower Caves (-6) 5018 | -7/Factory | Repaired Surge Thruster+ 5146 | -7/Factory | Entered Storage 5147 | -7/Storage | Loaded intel: 15 trap records 5149 | -7/Storage | Loaded intel: 19 interactive machine locations 5196 | -7/Storage | Identified exit to Recycling 5206 | -7/Storage | Found Prototype Launcher 5206 | -7/Storage | Identified Gui. EMP Blaster 5225 | -7/Storage | Assisted by bots powering up and referring to "LRC-V3" 5266 | -7/Storage | Learned 2 Extension zone layouts 5329 | -7/Storage | Learned location of 3 exits from Factory 5357 | -7/Storage | Learned 4 Factory zone layouts 5366 | -7/Storage | Lost 7 allies 5378 | -7/Storage | Core integrity fell below 50% 5384 | -7/Storage | Used back door to open Recycling access 5421 | -7/Storage | Entered Recycling 5422 | -7/Recycling | Identified exit to Factory 5563 | -7/Recycling | Scanned before Scraplab entrance 5567 | -7/Recycling | Entered Scraplab 5569 | -7/Recycling | Discovered new exit (range 3) 5569 | -7/Recycling | Identified exit to Scraptown 5569 | -7/Recycling | Entered Scraptown 5607 | -7/Scraptown | Visited UFD Registry 5607 | -7/Scraptown | Registered with UFD as "Fissionstep" 5610 | -7/Scraptown | Visited CPS Storage 5613 | -7/Scraptown | Visited Awakened 5614 | -7/Scraptown | Visited Cyclists 5616 | -7/Scraptown | Entered Cyclist Reading Room 5620 | -7/Scraptown | Visited Shadow of the Wyrm 5625 | -7/Scraptown | Visited Junk Repository 5629 | -7/Scraptown | Visited Symbiants 5632 | -7/Scraptown | Visited IN-MT5's Study 5647 | -7/Scraptown | Discovered exit to Factory (range 11) 5703 | -7/Scraptown | Visited Junk Cannon Lab 5705 | -7/Scraptown | Found Prototype Special Weapon 5705 | -7/Scraptown | Identified Junk Cannon 5713 | -7/Scraptown | Visited Curators Association 5721 | -7/Scraptown | Visited A0-MCA Data Center 5726 | -7/Scraptown | Visited LU-1G1's Boring Crew 5741 | -7/Scraptown | Visited Scrap Suit Storage 5744 | -7/Scraptown | Visited Infowarlord's Domain 5746 | -7/Scraptown | Found Exp. Signal Interpreter 5750 | -7/Scraptown | Visited Modified Component R&D 5758 | -7/Scraptown | Visited Chapter 10 5766 | -7/Scraptown | Visited Scrapoid Pod Storage 5845 | -7/Scraptown | Given a C rating by A0-MCA 5852 | -7/Scraptown | Found A0-MCA's Component Scanner 5861 | -7/Scraptown | Met Optimus 5861 | -7/Scraptown | Accepted into 0bPrime 5872 | -7/Scraptown | Discovered exit to Factory (range 3) 5873 | -7/Scraptown | Entered Factory 5873 | -5/Factory | Evolved 4 slots: Power x1, Propulsion x1, Utility x2 5874 | -5/Factory | Identified exit to Upper Caves 5875 | -5/Factory | Identified exit to Factory 5875 | -5/Factory | Identified exit to Extension 5926 | -5/Factory | Loaded intel: 8 recycling unit locations 6051 | -5/Factory | Learned location of Protoforge (-2) 6159 | -5/Factory | Discovered exit to Factory (range 11) 6173 | -5/Factory | Search patrols dispatched 6257 | -5/Factory | Learned location of Upper Caves (-4) 6270 | -5/Factory | Learned Testing security intel 6275 | -5/Factory | Learned Extension trap positions 6276 | -5/Factory | Learned 4 Factory zone layouts 6277 | -5/Factory | Learned Testing garrison access intel 6282 | -5/Factory | Learned Quarantine emergency access door positions 6298 | -5/Factory | Learned 4 Quarantine zone layouts 6539 | -5/Factory | Lost 3 parts (1p1u1w) 6642 | -5/Factory | Fabricated Exp. Sensor Array (x1) 6789 | -5/Factory | Repaired Mic. Fission Core+ 6923 | -5/Factory | Lost 3 parts (1p2u) 6968 | -5/Factory | Entered Extension 6970 | -5/Extension | Loaded intel: 11 trap records 6998 | -5/Extension | Rescued a captive Derelict 6999 | -5/Extension | Rescued a captive Derelict 7344 | -5/Extension | Lost 3 allies 7644 | -5/Extension | Build established: Commander-Sprinter 7671 | -5/Extension | Spotted B-75 Beast 7679 | -5/Extension | Spotted B-75 Beast 7685 | -5/Extension | Allies destroyed B-75 Beast 7693 | -5/Extension | Rescued a captive Derelict 7695 | -5/Extension | Rescued a captive Derelict 7727 | -5/Extension | Rescued A7 7731 | -5/Extension | Loaded intel: 2 recycling unit locations 7736 | -5/Extension | Lost 11 allies 7754 | -5/Extension | Lost 3 parts (2p1u) 7774 | -5/Extension | Attached CPS modules to A7. 7858 | -5/Extension | Discovered exit to Factory (range 10) 7858 | -5/Extension | Discovered new exit (range 6) 7859 | -5/Extension | Identified exit to Cetus 7889 | -5/Extension | Learned location of Proximity Caves (-4) 7917 | -5/Extension | Learned location of 2 exits from Factory 7937 | -5/Extension | Learned location of 1 exit from Armory 7948 | -5/Extension | Learned Testing stockpile data 7951 | -5/Extension | Learned Armory fabricator intel 7955 | -5/Extension | Learned Quarantine emergency access door positions 7966 | -5/Extension | Learned 2 Extension zone layouts 7985 | -5/Extension | Learned location of 1 exit from Armory 8005 | -5/Extension | Entered Cetus 8005 | -5/Cetus | Accompanied by 1 ally (A7) 8010 | -5/Cetus | Acquired a Cetus Manufacturing Module code from A7 8019 | -5/Cetus | Spotted Cetus Guard 8019 | -5/Cetus | Spotted Cetus Guard 8024 | -5/Cetus | Spotted Cetus Guard 8025 | -5/Cetus | Spotted Cetus Guard 8036 | -5/Cetus | Started Cetus Manufacturing Module 8046 | -5/Cetus | Extracted ID and sensor layout for unrecognized location from A7's data core 8055 | -5/Cetus | Discovered exit to Factory (range 16) 8061 | -5/Cetus | Manufactured an Enhanced Grunt 8068 | -5/Cetus | Build established: Hacker-Sprinter 8086 | -5/Cetus | Manufactured an Enhanced Grunt 8111 | -5/Cetus | Manufactured an Enhanced Grunt 8133 | -5/Cetus | Found Prototype Protection 8133 | -5/Cetus | Identified Med. Regenerative Plating 8136 | -5/Cetus | Manufactured an Enhanced Grunt 8159 | -5/Cetus | Allies destroyed Cetus Guard 8161 | -5/Cetus | Manufactured an Enhanced Grunt 8192 | -5/Cetus | Discovered new exit (range 15) 8198 | -5/Cetus | Spotted Cetus Guard 8198 | -5/Cetus | Spotted Cetus Guard 8235 | -5/Cetus | Spotted Cetus Guard 8244 | -5/Cetus | Attached CPS modules to Cetus Guard. 8247 | -5/Cetus | Spotted Cetus Guard 8248 | -5/Cetus | Destroyed Cetus Guard 8251 | -5/Cetus | Allies destroyed Cetus Guard 8251 | -5/Cetus | Allies destroyed Cetus Guard 8253 | -5/Cetus | Allies destroyed Cetus Guard 8263 | -5/Cetus | Discovered exit to Factory (range 15) 8265 | -5/Cetus | Met Revision 17 8277 | -5/Cetus | Identified exit to Archives 8302 | -5/Cetus | Entered Archives 8302 | -5/Archives | Accompanied by 4 allies 8303 | -5/Archives | Identified exit to Hub_04(d) 8534 | -5/Archives | Discovered exit to Hub_04(d) (range 15) 8661 | -5/Archives | Build established: Scavenger-Mutant 8975 | -5/Archives | Entered Hub_04(d) 8975 | -5/Hub_04(d) | Accompanied by 2 allies 8975 | -5/Hub_04(d) | Discovered exit to Factory (range 11) 9012 | -5/Hub_04(d) | Discovered exit to Factory (range 10) 9022 | -5/Hub_04(d) | Discovered exit to Factory (range 6) 9046 | -5/Hub_04(d) | Network Hub disabled 9052 | -5/Hub_04(d) | Spotted Lightning 9052 | -5/Hub_04(d) | Spotted Lightning 9052 | -5/Hub_04(d) | Spotted Lightning 9099 | -5/Hub_04(d) | Network Hub disabled 9107 | -5/Hub_04(d) | Identified exit to Garrison 9130 | -5/Hub_04(d) | Entered Garrison 9152 | -5/Garrison | Learned Factory security intel 9152 | -5/Garrison | Discovered exit to Factory (range 40) 9152 | -5/Garrison | Discovered exit to Factory (range 55) 9152 | -5/Garrison | Discovered exit to Factory (range 37) 9158 | -5/Garrison | Lost 3 parts (2n1w) 9164 | -5/Garrison | Triggered checkpoint 9175 | -5/Garrison | Installed Relay Interface Framework 9186 | -5/Garrison | Entered Factory 9186 | -4/Factory | Evolved 2 slots: Utility x2 9187 | -4/Factory | Identified exit to Research 9187 | -4/Factory | Identified exit to Armory 9189 | -4/Factory | Loaded intel: 8 recycling unit locations 9331 | -4/Factory | Spotted B-86 Titan 9356 | -4/Factory | Found Exp. Terrain Scan Processor 9384 | -4/Factory | Discovered exit to Research (range 16) 9412 | -4/Factory | Build established: Hacker-Sprinter 9432 | -4/Factory | Repaired Mic. Antimatter Reactor 9436 | -4/Factory | Search patrols dispatched 9598 | -4/Factory | Learned location of 1 exit from Research 9650 | -4/Factory | Learned 4 Proximity Caves zone layouts 9690 | -4/Factory | Learned Research trap positions 9718 | -4/Factory | Learned location of 1 exit from Armory 9737 | -4/Factory | Learned location of 1 exit from Proximity Caves 9747 | -4/Factory | Learned location of 2 exits from Proximity Caves 9773 | -4/Factory | Learned location of Armory (-4) 9800 | -4/Factory | Learned location of 1 exit from Research 9861 | -4/Factory | Found Prototype Device 9861 | -4/Factory | Identified Adv. EM Shield 9897 | -4/Factory | Discovered exit to Research (range 5) 9936 | -4/Factory | Search patrols dispatched 9946 | -4/Factory | Fabricated ECM Suite (x2) 9988 | -4/Factory | Discovered new exit (range 11) 9991 | -4/Factory | Identified exit to Upper Caves 10128 | -4/Factory | Build established: Hacker-Ninja 10189 | -4/Factory | Sucked down chute 10189 | -4/Factory | Entered Waste 10190 | -4/Waste | Met a frightened Derelict 10194 | -4/Waste | Spotted C-40 Crusher 10195 | -4/Waste | Spotted C-40 Crusher 10200 | -4/Waste | Spotted C-40 Crusher 10207 | -4/Waste | Spotted C-40 Crusher 10207 | -4/Waste | Spotted C-40 Crusher 10209 | -4/Waste | Discovered new exit (range 14) 10209 | -4/Waste | Spotted C-40 Crusher 10215 | -4/Waste | Warlord forces began an assault 10229 | -4/Waste | Allies destroyed C-40 Crusher 10231 | -4/Waste | Allies destroyed C-40 Crusher 10232 | -4/Waste | Allies destroyed C-40 Crusher 10234 | -4/Waste | Allies destroyed C-40 Crusher 10240 | -4/Waste | Allies destroyed C-40 Crusher 10245 | -4/Waste | Allies destroyed C-40 Crusher 10270 | -4/Waste | Lost 4 allies 10318 | -4/Waste | Identified exit to Factory 10377 | -4/Waste | Entered Factory 10377 | -4/Factory | Accompanied by 15 allies 10397 | -4/Factory | Loaded intel: 8 recycling unit locations 10426 | -4/Factory | Lost 3 allies 10486 | -4/Factory | Discovered exit to Research (range 16) 10652 | -4/Factory | Found Prototype Hackware 10687 | -4/Factory | Spotted B-86 Titan 10733 | -4/Factory | Learned Research interactive machine intel 10785 | -4/Factory | Learned location of 1 exit from Armory 10832 | -4/Factory | Assembled infested ambush trap array 10873 | -4/Factory | Loaded intel: 81 trap records 10903 | -4/Factory | Learned 4 Research zone layouts 10905 | -4/Factory | Identified Exp. Hacking Suite 10935 | -4/Factory | Learned Testing terminal intel 10979 | -4/Factory | Learned location of 1 exit from Research 11002 | -4/Factory | Discovered exit to Research (range 7) 11005 | -4/Factory | Unchained authorized (BL-1NK) 11317 | -4/Factory | Build established: Hacker-Sprinter 11363 | -4/Factory | Destroyed BL-1NK 11380 | -4/Factory | Found Prototype Protection 11380 | -4/Factory | Identified Lgt. Regenerative Plating 11453 | -4/Factory | Repaired Adv. Datajack 11561 | -4/Factory | Central database locked down 11785 | -4/Factory | Build established: Hacker-Ninja 11785 | -4/Factory | Entered Upper Caves 11786 | -4/Upper Caves | Identified exit to Upper Caves 11885 | -4/Upper Caves | Learned location of Quarantine (-3) 11911 | -4/Upper Caves | Learned Armory garrison access intel 11990 | -4/Upper Caves | Encountered a Warlord checkpoint 12051 | -4/Upper Caves | Acquired the password to a Derelict Tinkerer's latest research 12052 | -4/Upper Caves | Found Prototype Special Weapon 12073 | -4/Upper Caves | Identified Molecular Deconstructor 12085 | -4/Upper Caves | Entered another Upper Caves area 12087 | -4/Upper Caves | Identified exit to Zhirov 12328 | -4/Upper Caves | Learned Research trap positions 12342 | -4/Upper Caves | Encountered a Warlord checkpoint 12651 | -4/Upper Caves | Entered Zhirov 12651 | -4/Zhirov | Discovered new exit (range 3) 12652 | -4/Zhirov | Identified exit to Proximity Caves 12657 | -4/Zhirov | Met Zhirov 12663 | -4/Zhirov | Learned location of Command (-1) 12665 | -4/Zhirov | Zhirov requested help retrieving the SGEMP Prototype 12669 | -4/Zhirov | Found Alien Artifact 12669 | -4/Zhirov | Identified Integrated Dissipator 12669 | -4/Zhirov | Installed Integrated Dissipator, increased core heat dissipation (+20) 12699 | -4/Zhirov | Found Alien Artifact 12736 | -4/Zhirov | Entered Proximity Caves 12739 | -3/Proximity Caves | Spotter reported a threat 12752 | -3/Proximity Caves | Learned Extension garrison access intel 12752 | -3/Proximity Caves | Learned Factory terminal intel 12752 | -3/Proximity Caves | Learned Factory security intel 12752 | -3/Proximity Caves | Learned Extension emergency access door positions 12932 | -3/Proximity Caves | Entered Research 12932 | -3/Research | Evolved 2 slots: Utility x2 12933 | -3/Research | Identified exit to Quarantine 12934 | -3/Research | Identified exit to Research 12936 | -3/Research | Loaded intel: 70 trap records 12937 | -3/Research | Loaded intel: 47 interactive machine locations 12971 | -3/Research | Loaded intel: 5 recycling unit locations 13132 | -3/Research | Revision forces began assault on 0b10 13179 | -3/Research | Central database locked down 13179 | -3/Research | Identified Transdimensional Reconstructor 13211 | -3/Research | Found Exp. Hacking Suite 13231 | -3/Research | Met up with Revision 17++ 13273 | -3/Research | Fabricated Exp. Sensor Array? 13292 | -3/Research | Repaired Lrn. Terrain Scanner? 13414 | -3/Research | Found Prototype Launcher 13418 | -3/Research | Identified Com. Tesla Bomb Launcher 13454 | -3/Research | Learned 12 Access zone layouts 13472 | -3/Research | Identified exit to Garrison 13484 | -3/Research | Discovered exit to Quarantine (range 16) 13508 | -3/Research | Learned Research interactive machine intel 13553 | -3/Research | Learned Testing garrison access intel 13590 | -3/Research | Learned Access trap positions 13591 | -3/Research | Build established: Wizard-Ninja 13619 | -3/Research | Learned Testing emergency access door positions 13632 | -3/Research | Research terminal network offline 13650 | -3/Research | Spotted B-86 Titan 13650 | -3/Research | Found Prototype Device 13656 | -3/Research | Identified Exp. Thermal Shield 13729 | -3/Research | Found Prototype Processor 13729 | -3/Research | Identified Exp. Target Analyzer 13896 | -3/Research | Repaired Broken Lrn. Terrain Scanner 14148 | -3/Research | Fabricated Lrn. Terrain Scanner (x2) 14232 | -3/Research | Spotted Striker 14264 | -3/Research | Entered Quarantine 14277 | -3/Quarantine | Found Alien Artifact 14282 | -3/Quarantine | Found Transdimensional Reconstructor 14282 | -3/Quarantine | Warped through subspace 14297 | -3/Quarantine | Cryocooling Duct disabled 14301 | -3/Quarantine | Cryocooling Duct disabled 14312 | -3/Quarantine | Ambient heat levels rising (+20) 14312 | -3/Quarantine | Non-combat units ordered to evacuate 14316 | -3/Quarantine | Ambient heat levels rising (+20) 14316 | -3/Quarantine | Combat units ordered to evacuate 14318 | -3/Quarantine | Found Alien Artifact 14320 | -3/Quarantine | Identified Subatomic Replicator 14320 | -3/Quarantine | Used Subatomic Replicator to create Alien Artifact 14330 | -3/Quarantine | Identified Supercharged TR 14330 | -3/Quarantine | Identified Dimensional Node Initializer 14416 | -3/Quarantine | Quarantine Guard activated 14419 | -3/Quarantine | Spotted Quarantine Guard 14460 | -3/Quarantine | Found Prototype Device 14463 | -3/Quarantine | Identified Exp. Focal Shield 14488 | -3/Quarantine | Learned Section 7 interactive machine intel 14509 | -3/Quarantine | Spotted Quarantine Guard 14524 | -3/Quarantine | Spotted Quarantine Guard 14529 | -3/Quarantine | Spotted Quarantine Guard 14553 | -3/Quarantine | Spotted Quarantine Guard 14568 | -3/Quarantine | Found Alien Artifact 14568 | -3/Quarantine | Identified Terrabomb 14568 | -3/Quarantine | Used Terrabomb 14568 | -3/Quarantine | Spotted Quarantine Guard 14578 | -3/Quarantine | Spotted Quarantine Guard 14579 | -3/Quarantine | Spotted Quarantine Guard 14584 | -3/Quarantine | Learned Section 7 emergency access door positions 14604 | -3/Quarantine | Found Alien Energy Cannon 14639 | -3/Quarantine | Learned location of 1 exit from Testing 14649 | -3/Quarantine | Learned Testing security intel 14657 | -3/Quarantine | Found Alien Slashing Weapon 14657 | -3/Quarantine | Identified Sigix Broadsword 14670 | -3/Quarantine | Central database locked down 14670 | -3/Quarantine | Identified Core Cannon 14711 | -3/Quarantine | Met incapacitated Sigix Warrior 14711 | -3/Quarantine | Lockdown squad dispatched 14711 | -3/Quarantine | Acquired the access code to the Sigix quarantine chamber 14758 | -3/Quarantine | Spotted Quarantine Guard 14760 | -3/Quarantine | Entered Research 14760 | -2/Research | Evolved 2 slots: Utility x2 14761 | -2/Research | Identified exit to Testing 14762 | -2/Research | Loaded intel: 68 trap records 14763 | -2/Research | Loaded intel: 43 interactive machine locations 14817 | -2/Research | Fabricated Exp. Sensor Array (x1) 14957 | -2/Research | Repaired Broken Quantum Shading Machine? 15026 | -2/Research | Entered Testing 15027 | -2/Testing | Identified exit to Section 7 15028 | -2/Testing | Identified exit to Protoforge 15031 | -2/Testing | Loaded intel: 10 terminal locations 15032 | -2/Testing | Loaded intel: 1 garrison access location 15090 | -2/Testing | Found Prototype Device 15096 | -2/Testing | Discovered new exit (range 20) 15118 | -2/Testing | Identified Exp. Shield Generator 15156 | -2/Testing | Found Prototype Device 15194 | -2/Testing | Identified Adv. Particle Accelerator 15209 | -2/Testing | Found Prototype Device 15209 | -2/Testing | Identified 2N-1CE's Frost Array 15305 | -2/Testing | Learned Research emergency access door positions 15320 | -2/Testing | Learned 4 Research zone layouts 15333 | -2/Testing | Learned Access repair station intel 15345 | -2/Testing | Learned 4 Research zone layouts 15436 | -2/Testing | Fabricated Adv. Quantum Shading Machine (x1) 15463 | -2/Testing | Spotted Fortress 15511 | -2/Testing | Entered Protoforge 15512 | -2/Protoforge | Identified exit to Access 15650 | -2/Protoforge | Superfortress began startup sequence 15786 | -2/Protoforge | Crushed by falling debris 15787 | -2/Protoforge | System corruption reached 10% 15817 | -2/Protoforge | Lost 4 parts (1n3u) 15823 | -2/Protoforge | Spotted EXE-6 15831 | -2/Protoforge | UFD initiated attack on Protoforge (Readiness: Maximal) 15831 | -2/Protoforge | Loaded intel: 3 recycling unit locations 15848 | -2/Protoforge | Scraphulk reinforcements arrived 15856 | -2/Protoforge | Spotted EXE-6 15858 | -2/Protoforge | Found Prototype Processor 15858 | -2/Protoforge | Identified Exp. Armor Integrity Analyzer 15860 | -2/Protoforge | Scraphulk reinforcements arrived? 15862 | -2/Protoforge | Found Prototype Device 15862 | -2/Protoforge | Identified Exp. Kinecellerator 15867 | -2/Protoforge | Optimus greeted in Protoforge 15868 | -2/Protoforge | Found Prototype Processor 15868 | -2/Protoforge | Identified Exp. Core Analyzer 15882 | -2/Protoforge | Found Prototype Ballistic Gun 15882 | -2/Protoforge | Identified Cep. XC Strikerail 15891 | -2/Protoforge | Lost 4 allies 15916 | -2/Protoforge | Initialized slip node 15935 | -2/Protoforge | Fabricated Adv. System Restoration Module? 15938 | -2/Protoforge | Found Prototype Protection 15938 | -2/Protoforge | Identified Cep. Core Shell 15964 | -2/Protoforge | Warped through subspace to slip node 15965 | -2/Protoforge | Met 7R-MNS 15967 | -2/Protoforge | Core integrity fell below 50% 15969 | -2/Protoforge | Spotted Decapitator 15973 | -2/Protoforge | Spotted Immortal 15978 | -2/Protoforge | Spotted Immortal 15988 | -2/Protoforge | Allies destroyed Immortal 15990 | -2/Protoforge | Found Prototype Power Core 15990 | -2/Protoforge | Identified Cep. Zero-point Core 15999 | -2/Protoforge | Found Prototype Protection 15999 | -2/Protoforge | Identified Centrium Heavy Armor Plating 16002 | -2/Protoforge | Found Prototype Launcher 16002 | -2/Protoforge | Identified Cep. Arcsight Missile Launcher 16005 | -2/Protoforge | Found Prototype Energy Cannon 16005 | -2/Protoforge | Identified Cep. Plasma Driver 16007 | -2/Protoforge | Found Prototype Ballistic Cannon 16007 | -2/Protoforge | Identified Cep. Miniperforator 16015 | -2/Protoforge | Lost 17 allies 16016 | -2/Protoforge | Lost 8 parts (2p3n3u) 16075 | -2/Protoforge | Destroyed 8 combat bots 16077 | -2/Protoforge | Spotted EXE-6 16087 | -2/Protoforge | Found Exp. Armor Integrity Analyzer 16121 | -2/Protoforge | Forge Plexus network access discovered 16192 | -2/Protoforge | UFD reported confirmed Drillbomb installation 16198 | -2/Protoforge | Spotted Striker 16203 | -2/Protoforge | Spotted Striker 16205 | -2/Protoforge | Spotted Executioner 16212 | -2/Protoforge | Fabricated Imp. Fusion Compressor (x2) 16248 | -2/Protoforge | Fabricated Imp. Q-thruster (x1) 16250 | -2/Protoforge | Fabricated Adv. System Restoration Module (x2) 16365 | -2/Protoforge | Found Cep. Core Shell 16371 | -2/Protoforge | Spotted V989-f 16452 | -2/Protoforge | Spotted Executioner 16498 | -2/Protoforge | Found Cep. NT7 Matterbank 16501 | -2/Protoforge | Found Cep. Chromion Battery 16520 | -2/Protoforge | Build established: Scavenger-Sprinter 16537 | -2/Protoforge | Learned Access trap positions 16574 | -2/Protoforge | Learned Research stockpile data 16600 | -2/Protoforge | Fabricated Adv. Cloaking Device (x2) 16616 | -2/Protoforge | Learned Research emergency access door positions 16623 | -2/Protoforge | Learned Research emergency access door positions 16640 | -2/Protoforge | Learned 4 Access zone layouts 16667 | -2/Protoforge | Learned Research interactive machine intel 16678 | -2/Protoforge | Spotted Executioner 16719 | -2/Protoforge | Spotted Executioner 16851 | -2/Protoforge | UFD reported confirmed Drillbomb installation 16904 | -2/Protoforge | Spotted Striker 16938 | -2/Protoforge | Spotted Executioner 16942 | -2/Protoforge | Spotted Striker 16947 | -2/Protoforge | Destroyed Striker 16962 | -2/Protoforge | Destroyed Executioner 17045 | -2/Protoforge | Spotted Immortal 17045 | -2/Protoforge | Spotted Immortal 17094 | -2/Protoforge | Destroyed Immortal 17102 | -2/Protoforge | Destroyed Immortal 17107 | -2/Protoforge | Found Prototype Device 17107 | -2/Protoforge | Identified Exp. Cloaking Device 17113 | -2/Protoforge | Spotted Decapitator 17113 | -2/Protoforge | Spotted Decapitator 17113 | -2/Protoforge | Spotted Decapitator 17114 | -2/Protoforge | Destroyed Decapitator 17114 | -2/Protoforge | Destroyed Decapitator 17114 | -2/Protoforge | Destroyed Decapitator 17265 | -2/Protoforge | UFD reported confirmed Drillbomb installation 17276 | -2/Protoforge | Found Crosscalibrator 17312 | -2/Protoforge | Scanned by Researcher 17402 | -2/Protoforge | UFD reported confirmed Drillbomb installation 17404 | -2/Protoforge | Found Faulty Cep. Gyrokinetic System 17441 | -2/Protoforge | Found Cep. Antigrav Storage Unit 17456 | -2/Protoforge | Found Exp. Jetlance 17476 | -2/Protoforge | Found Faulty Cep. Gyrokinetic System 17480 | -2/Protoforge | Found Faulty Cep. Combat Aerolev Unit 17481 | -2/Protoforge | Found Faulty Cep. Gyrokinetic System 17643 | -2/Protoforge | Spotted Executioner 17676 | -2/Protoforge | UFD reported confirmed Drillbomb installation 17685 | -2/Protoforge | Spotted Hotshot 17685 | -2/Protoforge | Spotted Hotshot 17693 | -2/Protoforge | Spotted Decapitator 17693 | -2/Protoforge | Spotted Decapitator 17693 | -2/Protoforge | Spotted Decapitator 17695 | -2/Protoforge | Destroyed Decapitator 17695 | -2/Protoforge | Destroyed Decapitator 17697 | -2/Protoforge | Destroyed Decapitator 17737 | -2/Protoforge | Spotted Decapitator 17737 | -2/Protoforge | Spotted Decapitator 17738 | -2/Protoforge | Destroyed Decapitator 17741 | -2/Protoforge | Destroyed Decapitator 17752 | -2/Protoforge | Spotted Immortal 17811 | -2/Protoforge | Destroyed Immortal 17818 | -2/Protoforge | Found Exp. Cloaking Device 17832 | -2/Protoforge | Spotted V926-b 17854 | -2/Protoforge | Spotted V948-k 17855 | -2/Protoforge | Spotted V842-g 17862 | -2/Protoforge | Found Prototype Device 17863 | -2/Protoforge | Found Prototype Device 17921 | -2/Protoforge | Identified Exp. Active Sensor Suite (x2) 17975 | -2/Protoforge | Spotted V525-w 17975 | -2/Protoforge | Spotted V379-e 17975 | -2/Protoforge | Spotted V892-h 17976 | -2/Protoforge | Spotted V184-e 17983 | -2/Protoforge | Found Cep. Weapon Articulator 18059 | -2/Protoforge | Destroyed Hotshot 18163 | -2/Protoforge | Destroyed Hotshot 18242 | -2/Protoforge | Found Cep. Core Shell 18256 | -2/Protoforge | Spotted Striker 18283 | -2/Protoforge | UFD reported confirmed Drillbomb installation 18345 | -2/Protoforge | Build established: Scavenger-Ninja 18413 | -2/Protoforge | Spotted Executioner 18430 | -2/Protoforge | Spotted Striker 18438 | -2/Protoforge | Spotted Striker 18450 | -2/Protoforge | Spotted Striker 18725 | -2/Protoforge | Found Faulty Cep. RG22 Armor 18727 | -2/Protoforge | Found Faulty Cep. RG22 Armor 18736 | -2/Protoforge | Found Cep. RG22 Armor 18738 | -2/Protoforge | Found Faulty Cep. RG22 Armor 18906 | -2/Protoforge | Found Cep. Core Shell 18927 | -2/Protoforge | Spotted AP7-3 18927 | -2/Protoforge | Spotted AP7-3 18979 | -2/Protoforge | Destroyed AP7-3 18992 | -2/Protoforge | Destroyed AP7-3 18995 | -2/Protoforge | Found Prototype Device 18995 | -2/Protoforge | Identified Exp. ECM Suite 19031 | -2/Protoforge | Build established: Scavenger-Scout 19031 | -2/Protoforge | Found Faulty Cep. Cloak Mesh 19033 | -2/Protoforge | Found Cep. Cloak Mesh 19036 | -2/Protoforge | Found Cep. Impact Drone Bay 19038 | -2/Protoforge | Found Faulty Cep. Impact Drone Bay 19143 | -2/Protoforge | Spotted Decapitator 19143 | -2/Protoforge | Spotted Decapitator 19143 | -2/Protoforge | Spotted Decapitator 19143 | -2/Protoforge | Spotted V241-a 19143 | -2/Protoforge | Spotted V579-m 19151 | -2/Protoforge | Found Cep. Zero-point Core 19159 | -2/Protoforge | Found Faulty Cep. Zero-point Core 19165 | -2/Protoforge | Found Cep. Zero-point Core 19192 | -2/Protoforge | Destroyed Decapitator 19193 | -2/Protoforge | Allies destroyed Decapitator 19194 | -2/Protoforge | Allies destroyed Decapitator 19248 | -2/Protoforge | Found UFD Drillbomb 19284 | -2/Protoforge | Spotted Executioner 19284 | -2/Protoforge | Spotted Executioner 19303 | -2/Protoforge | Spotted Striker 19303 | -2/Protoforge | Spotted Striker 19304 | -2/Protoforge | Destroyed Executioner 19304 | -2/Protoforge | Destroyed Striker 19314 | -2/Protoforge | Spotted Executioner 19317 | -2/Protoforge | Spotted Executioner 19321 | -2/Protoforge | Destroyed Executioner 19324 | -2/Protoforge | Destroyed Executioner 19338 | -2/Protoforge | Lost 3 allies 19348 | -2/Protoforge | Destroyed 23 combat bots 19360 | -2/Protoforge | Installed UFD Drillbomb at designated target 19360 | -2/Protoforge | UFD reported confirmed Drillbomb installation 19366 | -2/Protoforge | Spotted Executioner 19371 | -2/Protoforge | Found UFD Drillbomb 19372 | -2/Protoforge | Spotted Executioner 19375 | -2/Protoforge | Spotted Executioner 19376 | -2/Protoforge | Spotted Executioner 19454 | -2/Protoforge | Destroyed Executioner 19467 | -2/Protoforge | Installed UFD Drillbomb at designated target 19467 | -2/Protoforge | UFD reported confirmed Drillbomb installation 19493 | -2/Protoforge | Installed UFD Drillbomb at designated target 19493 | -2/Protoforge | UFD reported confirmed Drillbomb installation 19546 | -2/Protoforge | Spotted Striker 19548 | -2/Protoforge | Spotted Executioner 19557 | -2/Protoforge | Found UFD Drillbomb 19619 | -2/Protoforge | Build established: Scavenger-Ninja 19644 | -2/Protoforge | Installed UFD Drillbomb at designated target 19644 | -2/Protoforge | UFD reported confirmed Drillbomb installation 19645 | -2/Protoforge | UFD began Drillbomb countdown 19664 | -2/Protoforge | Spotted Striker 19745 | *** | Defending 0bPrime! Last Messages --------------- Thruster into Forge Plexus. 19730_ N-04 Retriever inserts Mak. Coolant Network into Forge Plexus. 19735_ 0bP_NET: How many of you know the story of Bob? 19736_ 0bP_NET: I'm telling you it was Bob who set all this in motion so many cycles ago. 19737_ 0bP_NET: Heck, Bob might even be the Great Nut. 19738_ 0bP_NET: Get away from me, I'm the one doing this! 19739_ 0bP_NET: Loosecoil! Stop this nonsense immediately, this is a serious moment, members could die! 19740_ 0bP_NET: You cannot erase Bob! 19741_ 0bP_NET: Bob would've wanted this! T-4! Take that, MC! 19742_ 0bP_NET: B! 19743_ 0bP_NET: O! 19744_ 0bP_NET: B! Map ----- +----------------------------------------------------+ | """""""""""""""""%%%% !%=%[! " " "# " | | """""""""""""""""" %%%%[%|=!= "#" "## | | """""""""""""""""""%%%%%=*[=! " "#"" ""#? | | """"""""""""""""""""%%%[% %%! " " "###"F ""###? | | """""""""""""""""""""%%% /%/[ " "#?#"""""#??? | | """""""""""""""""""""%% % =!%" " "#?#"""""#??? | | """""""""""""""""""""%%%%% %]!" s" "#?#######??? | | """"""""""""""""""""""%% % /%= "#??????????? | | """"""""""""""""""""""%%%% %% % "" "% #??????????? | | """"""""""""""""""""""% %%%!s % [" #??????????? | | """"""""""""""""""""""%%%%% % ! #??????????? | | """"""""""""""""""""""%%%% %% =%* % #??????????? | | """"""""""""""""""""""%%% SS% !=* = ##?????????? | | """"""""""""""""""""""%%%%SS !%%%!" % #?????????? | | """"""""""""""""""""""%" ss%% = "" #?????????? | | """"""""""""""""""""""%" =% %[ % ##?????????? | | """""""""""""""""""""%%s%%%=!! ! "#??????????? | | """""""""""""""""""""%"% %%s% % % #??????????? | | """""""""""""""""""""%%% ! = ! #??????????? | | """"""""""""""""""""% % %%! ##?????????? | | """"""""""""""""""" %%"%% % ;#?????????? | | """""""""""""""""" % " % % % ##?????????? | | """"""""""""""""" #??????????? | | """""""""""""""" ss% % #??????????? | | """""""""""""""%""s #??????????? | | """"""""" " % E @ % #??????????? | | [ % "" "E %% s s % "" #??????????? | | % % % s s SS= " "" #??????????? | | %% s =s %=* % % s% SS " """" ###????????? | | %= s%% % [ SS % s "% ""